Workbook

Sheet Mifid Calcul PROFIL VS STRATEGY (hidden)
A1: Calculation MIFID for Vermeg
A3: 1) Matrix
B5: BR 21 | C5: Stability Fund | D5: Balanced-Low Fund | E5: FFG Architect Strategy Fund | F5: Balanced Fund | G5: Dynamic Fund | H5: Aggressive Fund
A6: RISK CLASS PV | B6: 1 | C6: 3 | D6: 4 | E6: 4 | F6: 4.5 | G6: 5 | H6: 6
A7: No Profil | B7: 0 | C7: 0 | D7: 0 | E7: 0 | F7: 0 | G7: 0 | H7: 0
A8: Sans Risque NA | B8: 0 | C8: 0 | D8: 0 | E8: 0 | F8: 0 | G8: 0 | H8: 0
A9: Sans Risque (max riskclass 1) | B9: 1 | C9: 0 | D9: 0 | E9: 0 | F9: 0 | G9: 0 | H9: 0
A10: Défensif (max riskclass 3) | B10: 1 | C10: 1 | D10: 0 | E10: 0 | F10: 0 | G10: 0 | H10: 0
A11: Neutre (max riskclass 4) | B11: 1 | C11: 1 | D11: 1 | E11: 1 | F11: 0 | G11: 0 | H11: 0
A12: Equilibré (Max riskclass 5) | B12: 1 | C12: 1 | D12: 1 | E12: 1 | F12: 1 | G12: 0 | H12: 0
A13: Dynamique (Max riskclass 7) | B13: 1 | C13: 1 | D13: 1 | E13: 1 | F13: 1 | G13: 1 | H13: 1
A15: 2) Moyenne Pondérée
A17: Règle : Moyenne pondérée par les réserves du score de risque des constituants du produit ou du portefeuille
A19: Prendre le pourcentage d'investissement dans chaque classe de risque en considérant de l’ensemble des produits concernés par l’évaluation. Calculer la moyenne des classes de risque:
A21: (A% x classe de risque produit 8) + (B% x classe de risque produit 7)+ … + ( (100-A-B-C-D-E-F-G)% x classe de risque produit 1) = Score de Risque du portefeuille (ou produit)
A23: Ce score doit être inférieur au score lié à l'investor profile
B25: Score investor profile
A26: Pas de profil | B26: -1
A27: non-approprié | B27: 0
A28: =beleggerstype_Score_0 -> 0. Zonder risico | B28: 1
A29: =beleggerstype_Score_a -> a. Defensief | B29: 3
A30: =beleggerstype_Score_b -> b. Neutraal | B30: 4
A31: =beleggerstype_Score_c -> c. Evenwichtig | B31: 5
A32: =beleggerstype_Score_d -> d. Dynamisch | B32: 7
A34: Choix qui apparaît en premier
A36: Sans risque | B36: Pas d'application uniquement Capiplan ==> pas ok pour produit Combi
G37: help:
A38: 1 | B38: Défensif | C38: 0.5 | D38: Capiplan 0,45% | E38: 0.5 | F38: Stability Fund | G38: =B38 -> Défensif
A39: 2 | B39: Neutre | C39: 0.5 | D39: Capiplan 0,45% | E39: 0.5 | F39: Balanced-Low Fund | G39: =B39 -> Neutre
A40: 3 | B40: Equilibré | C40: 0.3 | D40: Capiplan 0,45% | E40: 0.7 | F40: Balanced Fund | G40: =B40 -> Equilibré
A41: 4 | B41: Dynamique | C41: 0 | D41: Capiplan 0,45% | E41: 1 | F41: Dynamic Fund | G41: =B41 -> Dynamique
A42: =Beleggerstype_Code ->  | B42: in te vullen default | C42: =VLOOKUP(Beleggerstype_Code,tbl_Combi_Default,3,FALSE) ->  | D42: =VLOOKUP(Beleggerstype_Code,tbl_Combi_Default,4,FALSE) ->  | E42: =VLOOKUP(Beleggerstype_Code,tbl_Combi_Default,5,FALSE) ->  | F42: =VLOOKUP(Beleggerstype_Code,tbl_Combi_Default,6,FALSE) -> 
A45: 3) Test informatique
A47: Verification que 1) Matrix ET 2) Moyenne pondérée sont vérifiés.
A49: Profil de risque obtenu par Mifid | B49: =Finaal_beleggerstype -> Geen profielbepaling mogelijk
A52: INVESTMENT | B52: BR 21 | C52: =Combi2_Fund -> 0
A53: Pourcentage | B53: =Combi1_Pct -> 0 | C53: =Combi2_pct -> 0
A55: A) Test Matrix
B57: Verif BR21 | C57: Verif BR23 | D57: TOTAL
A58: =A28 -> 0. Zonder risico | B58: =IF(Combi1_Pct>BR21_max_SansRisque,"NOK","OK") -> OK | C58: =IF(PCT_COMBI_2>HLOOKUP(Prod_COMBI_2,Combi_matrix_Max,5,FALSE),"NOK","OK") ->  | D58: =IF(OR($B58="NOK",$C58="NOK"),"NOK","OK") -> 
A59: =A29 -> a. Defensief | B59: =IF(Combi1_Pct>BR21_max_Defensif,"NOK","OK") -> OK | C59: =IF(PCT_COMBI_2>HLOOKUP(Prod_COMBI_2,Combi_matrix_Max,6,FALSE),"NOK","OK") ->  | D59: =IF(OR($B59="NOK",$C59="NOK"),"NOK","OK") -> 
A60: =A30 -> b. Neutraal | B60: =IF(Combi1_Pct>BR21_max_Neutre,"NOK","OK") -> OK | C60: =IF(PCT_COMBI_2>HLOOKUP(Prod_COMBI_2,Combi_matrix_Max,7,FALSE),"NOK","OK") ->  | D60: =IF(OR($B60="NOK",$C60="NOK"),"NOK","OK") -> 
A61: =A31 -> c. Evenwichtig | B61: =IF(Combi1_Pct>BR21_max_equilibre,"NOK","OK") -> OK | C61: =IF(PCT_COMBI_2>HLOOKUP(Prod_COMBI_2,Combi_matrix_Max,8,FALSE),"NOK","OK") ->  | D61: =IF(OR($B61="NOK",$C61="NOK"),"NOK","OK") -> 
A62: =A32 -> d. Dynamisch | B62: =IF(Combi1_Pct>BR21_max_dynamic,"NOK","OK") -> OK | C62: =IF(PCT_COMBI_2>HLOOKUP(Prod_COMBI_2,Combi_matrix_Max,9,FALSE),"NOK","OK") ->  | D62: =IF(OR($B62="NOK",$C62="NOK"),"NOK","OK") -> 
A64: MATRIX TEST | B64: =IF(ISERROR(VLOOKUP(Finaal_beleggerstype,A57:D62,4,FALSE)),"NOK",VLOOKUP(Finaal_beleggerstype,A57:D62,4,FALSE)) -> NOK
A66: B) Test moyenne pondérée
A68: Produit | B68: Produit A | C68: =HLOOKUP($B$52,Combi_matrix_Max,2,FALSE) -> 1
B69: Produit B | C69: =HLOOKUP($C$52,Combi_matrix_Max,2,FALSE) -> 
B70: Produit C | C70: …
A72: Calcul classe produit | B72: =MAX(C68,C69) -> 
A73: Score investor profile | B73: =VLOOKUP(Profile_a_Ponderer,A26:B32,2,FALSE) -> 
A75: TEST OK | B75: =IF(B73>=B72,"OK","NOK") -> 
A77: SI CELL B64 ET B75 OK alors OK en correspondance du profil | B77: =IF(ISERROR(IF(AND(B64="OK",B75="OK"),"OK","NOK")),"NOK",IF(AND(B64="OK",B75="OK"),"OK","NOK")) -> NOK
A78: EXCEPTION SI FISCAL = EPARGNE PENSION alors pas d' AGGRESSIVE FUND
A80: Choix qui apparaît en premier FREE DRIVEN
A82: Pas de Profile | B82: Pas d'application aucun FUND
A84: Sans risque NA | B84: Pas d'application no BR21, no BR23
A86: Sans risque | B86: Pas d'application uniquement BR21
A88: Défensif | B88: Default | C88: BR 21 | D88: Stability Fund
C89: 0.5 | D89: 0.5
A92: Neutre | B92: Default | C92: BR 21 | D92: Balanced-Low Fund
C93: 0.5 | D93: 0.5
A96: Equilibré | B96: Default | C96: BR 21 | D96: Balanced Fund
C97: 0.3 | D97: 0.7
A100: Dynamique | B100: Default | C100: BR 21 | D100: Dynamic Fund
C101: 0 | D101: 1
B103: Choix 2 | C103: BR 21 | D103: Aggressive Fund | E103: Pas autorisé pour le produit Epargne Pension et les Packs qui en découlent
C104: 0 | D104: 1

Sheet Passendheid Vivium ERGO (hidden)
A2: Liste des produits possibles selon les souhaits du client | F2: =F32 -> X | G2: =G32 -> X | H2: X | I2: X | J2: X | K2: X | L2: X | M2: =M32 -> X | N2: FUNDS NO LONGER AS A SEPARATE PRODUCT !!! (29/08/2017) | R2: Combi | AB2: =N2 -> FUNDS NO LONGER AS A SEPARATE PRODUCT !!! (29/08/2017) | AG2: =ROW() -> 2
F3: =T3 -> Capiplan 0,45% (Enkel Tak 21) | G3: =U3 -> Capiplan 0% (Enkel Tak 21) | H3: =V3 -> CAPI 23 0,45% (Enkel Tak 21) | I3: CAPI 23 0% (Enkel Tak 21) | J3: Jeugdplan Capiplan 0,45% | K3: Jeugdplan Capiplan 0% | L3: Jeugdplan CAPI 23 0,45% | M3: =AA3 -> Jeugdplan CAPI 23 0% | N3: Stability fund | O3: Balanced fund | P3: Dynamic fund | Q3: Aggressive fund | R3: Combi | T3: ="Capiplan 0,45% " & ProductName_Suffix -> Capiplan 0,45% (Enkel Tak 21) | U3: ="Capiplan 0% " & ProductName_Suffix -> Capiplan 0% (Enkel Tak 21) | V3: ="CAPI 23 0,45% " & ProductName_Suffix -> CAPI 23 0,45% (Enkel Tak 21) | W3: ="CAPI 23 0% " & ProductName_Suffix -> CAPI 23 0% (Enkel Tak 21) | X3: =Lbl_Plan_Jeunesse & " Capiplan 0,45%" -> Jeugdplan Capiplan 0,45% | Y3: =Lbl_Plan_Jeunesse& " Capiplan 0%" -> Jeugdplan Capiplan 0% | Z3: =Lbl_Plan_Jeunesse & " CAPI 23 0,45%" -> Jeugdplan CAPI 23 0,45% | AA3: =Lbl_Plan_Jeunesse & " CAPI 23 0%" -> Jeugdplan CAPI 23 0% | AB3: Stability fund | AC3: Balanced fund | AD3: Dynamic fund | AE3: Aggressive fund | AF3: Combi | AG3: =ROW() -> 3
A4: 7 | B4: Quelles garanties principales? | C4: Autre | F4: =IF(AND($E4="X",T4="X"),"X", " ") ->  | G4: =IF(AND($E4="X",U4="X"),"X", " ") ->  | H4: =IF(AND($E4="X",V4="X"),"X", " ") ->  | I4: =IF(AND($E4="X",W4="X"),"X", " ") ->  | R4: =IF(AND($E4="X",AF4="X"),"X", " ") ->  | T4: x | U4: x | V4: x | W4: x | X4: x | Y4: x | Z4: x | AA4: x | AB4: x | AC4: x | AD4: x | AE4: x | AG4: =ROW() -> 4
C5: Epargne et Investissement | F5: =IF(AND($E5="X",T5="X"),"X", " ") ->  | G5: =IF(AND($E5="X",U5="X"),"X", " ") ->  | J5: =IF(AND($E5="X",X5="X"),"X", " ") ->  | K5: =IF(AND($E5="X",Y5="X"),"X", " ") ->  | L5: =IF(AND($E5="X",Z5="X"),"X", " ") ->  | M5: =IF(AND($E5="X",AA5="X"),"X", " ") ->  | N5: =IF(AND($E5="X",AB5="X"),"X", " ") ->  | O5: =IF(AND($E5="X",AC5="X"),"X", " ") ->  | P5: =IF(AND($E5="X",AD5="X"),"X", " ") ->  | R5: =IF(AND($E5="X",AF5="X"),"X", " ") ->  | T5: x | U5: x | V5: x | W5: x | X5: x | Y5: x | Z5: x | AA5: x | AB5: x | AC5: x | AD5: x | AE5: x | AG5: =ROW() -> 5
D6: ss envie de retrait | AB6: x | AC6: x | AD6: x | AE6: x | AG6: =ROW() -> 6
D7: en combinaison avec retraits récurrents | AB7: x | AC7: x | AD7: x | AE7: x | AG7: =ROW() -> 7
A8: 8 | B8: Quelles garanties complémentaires? | C8: Décès | AB8: x | AC8: x | AD8: x | AE8: x | AG8: =ROW() -> 8
C9: Invalidité | AB9: x | AC9: x | AD9: x | AE9: x | AG9: =ROW() -> 9
C10: Décès accidentel | AB10: x | AC10: x | AD10: x | AE10: x | AG10: =ROW() -> 10
A11: 9 | B11: Fiscalité | C11: Avec avantages fiscaux | X11: x | Y11: x | Z11: x | AA11: x | AB11: x | AC11: x | AD11: x | AE11: x | AG11: =ROW() -> 11
C12: Sans fiscalité | AB12: x | AC12: x | AD12: x | AE12: x | AG12: =ROW() -> 12
A13: 10 | B13: Versements | C13: Prime unique | E13: x | N13: X | O13: X | P13: X | Q13: X | AB13: x | AC13: x | AD13: x | AE13: x | AG13: =ROW() -> 13
C14: Prime périodique | AB14: x | AC14: x | AD14: x | AE14: x | AG14: =ROW() -> 14
C15: Versements libres (existe pas chez vivium) | T15: x | U15: x | V15: x | W15: x | X15: x | Y15: x | Z15: x | AA15: x | AB15: x | AC15: x | AD15: x | AE15: x | AG15: =ROW() -> 15
C16: Personne MORALE | AB16: x | AC16: x | AD16: x | AE16: x | AG16: =ROW() -> 16
A17: 11 | B17: Quel montant de prime unique ou sur base annuelle | C17: Prime unique: | D17: 5000 | F17: =IF($E17="","x",IF($E13="X",IF($E17<$D17,"X",""),IF($E14="x",IF($E17<T17,"X",""),""))) -> x | G17: x | H17: x | I17: x | J17: x | K17: x | L17: x | M17: x | N17: x | O17: x | P17: x | Q17: x | R17: =IF($E17="","",IF($E14="X",IF($E17<AF17,"X", " "),IF($E17<AF17,"X",""))) ->  | T17: 300 | U17: 300 | V17: 300 | W17: 300 | X17: 300 | Y17: 300 | Z17: 300 | AA17: 300 | AB17: 300 | AC17: 300 | AD17: 300 | AE17: 300 | AG17: =ROW() -> 17
A18: 12 | B18: Quelle durée | C18: Durée inférieure ou égal à 3 ans | F18: =IF(AND($E18="X",T18="X"),"X", " ") ->  | H18: =IF(AND($E18="X",V18="X"),"X", " ") ->  | I18: =IF(AND($E18="X",W18="X"),"X", " ") ->  | AB18: x | AC18: x | AD18: x | AE18: x | AG18: =ROW() -> 18
C19: Durée inférieure à 8 ans | F19: =IF(AND($E19="X",T19="X"),"X", " ") ->  | G19: =IF(AND($E19="X",U19="X"),"X", " ") ->  | J19: =IF(AND($E19="X",X19="X"),"X", " ") ->  | K19: =IF(AND($E19="X",Y19="X"),"X", " ") ->  | L19: =IF(AND($E19="X",Z19="X"),"X", " ") ->  | M19: =IF(AND($E19="X",AA19="X"),"X", " ") ->  | N19: =IF(AND($E19="X",AB19="X"),"X", " ") ->  | O19: =IF(AND($E19="X",AC19="X"),"X", " ") ->  | P19: =IF(AND($E19="X",AD19="X"),"X", " ") ->  | R19: =IF(AND($E19="X",AF19="X"),"X", " ") ->  | AB19: x | AC19: x | AD19: x | AE19: x | AG19: =ROW() -> 19
C20: Durée supérieure à 8 ans | AB20: x | AC20: x | AD20: x | AE20: x | AG20: =ROW() -> 20
C21: Jusqu'à la retraite | AB21: x | AC21: x | AD21: x | AE21: x | AG21: =ROW() -> 21
A22: 13 | B22: Devez-vous pouvoir récupérer une partie de l'investissement? | C22: Non Chez vivium çà ne dépend pas du produit mais de la fiscalité | AB22: x | AC22: x | AD22: x | AE22: x | AG22: =ROW() -> 22
C23: Régulièrement | AB23: x | AC23: x | AD23: x | AE23: x | AG23: =ROW() -> 23
C24: Flexible | AB24: x | AC24: x | AD24: x | AE24: x | AG24: =ROW() -> 24
A25: 14 | B25: Attentes spécifiques | D25: Destiné à un jeune adulte au terme fixé | T25: x | U25: x | V25: x | W25: x | AB25: x | AC25: x | AD25: x | AE25: x | AG25: =ROW() -> 25
D26: Rendement garanti préféré à la participation bénéficiaire | U26: x | W26: x | Y26: x | AA26: x | AB26: x | AC26: x | AD26: x | AE26: x | AG26: =ROW() -> 26
D27: Possibilité de demander l'ajout d'une ACRI dans le futur | AB27: x | AC27: x | AD27: x | AE27: x | AG27: =ROW() -> 27
D28: Possibilité de demander l'ajout d'un capital décès minimum dans le futur | AB28: x | AC28: x | AD28: x | AE28: x | AG28: =ROW() -> 28
D29: Rendement lié à la bourse | T29: x | U29: x | X29: x | Y29: x | AB29: x | AC29: x | AD29: x | AE29: x | AG29: =ROW() -> 29
D30: garantie principale sans risque + rendement lié à la bourse | T30: x | U30: x | X30: x | Y30: x | AB30: x | AC30: x | AD30: x | AE30: x | AG30: =ROW() -> 30
D31: Possibilité de récupérer le précompte mobilier via l'impôt des sociétés Pas d'application chez vivium car pas de branche 26 | T31: x | U31: x | V31: x | W31: x | X31: x | Y31: x | Z31: x | AA31: x | AB31: x | AC31: x | AD31: x | AE31: x | AG31: =ROW() -> 31
A32: Liste des produits possibles selon les souhaits du client | F32: =IF(COUNTIF('Passendheid Vivium ERGO'!F4:F31,"X")>0,"X", T$3) -> X | G32: =IF(COUNTIF('Passendheid Vivium ERGO'!G4:G31,"X")>0,"X", U$3) -> X | H32: =IF(COUNTIF('Passendheid Vivium ERGO'!H4:H31,"X")>0,"X", V$3) -> X | I32: =IF(COUNTIF('Passendheid Vivium ERGO'!I4:I31,"X")>0,"X", W$3) -> X | J32: =IF(COUNTIF('Passendheid Vivium ERGO'!J4:J31,"X")>0,"X", X$3) -> X | K32: =IF(COUNTIF('Passendheid Vivium ERGO'!K4:K31,"X")>0,"X", Y$3) -> X | L32: =IF(COUNTIF('Passendheid Vivium ERGO'!L4:L31,"X")>0,"X", Z$3) -> X | M32: =IF(COUNTIF('Passendheid Vivium ERGO'!M4:M31,"X")>0,"X", AA$3) -> X | N32: =IF(COUNTIF('Passendheid Vivium ERGO'!N4:N31,"X")>0,"X", AB$3) -> X | O32: =IF(COUNTIF('Passendheid Vivium ERGO'!O4:O31,"X")>0,"X", AC$3) -> X | P32: =IF(COUNTIF('Passendheid Vivium ERGO'!P4:P31,"X")>0,"X", AD$3) -> X | Q32: =IF(COUNTIF('Passendheid Vivium ERGO'!Q4:Q31,"X")>0,"X", AE$3) -> X | R32: =IF(COUNTIF('Passendheid Vivium ERGO'!R4:R31,"X")>0,"X", AF$3) -> Combi | T32: =T3 -> Capiplan 0,45% (Enkel Tak 21) | U32: Capiplan 0% (Enkel Tak 21) | V32: CAPI 23 0,45% (Enkel Tak 21) | W32: CAPI 23 0% (Enkel Tak 21) | X32: Jeugdplan Capiplan 0,45% | Y32: Jeugdplan Capiplan 0% | Z32: Jeugdplan CAPI 23 0,45% | AA32: Jeugdplan CAPI 23 0% | AB32: Stability fund | AC32: Balanced fund | AD32: Dynamic fund | AE32: Aggressive fund | AF32: Combi | AG32: =ROW() -> 32
AG33: =ROW() -> 33
AG34: =ROW() -> 34
AG35: =ROW() -> 35

Sheet scoring vragenlijst (hidden)
B1: vragen | C1: antwoordmogelijkheden | E1: algemene weging | F1: scoring/vraag | G1: scoring/ antwoord | H1: max score | I1: min score | J1: gewicht indiv antwoord tov totale score (meest doorslaggevende indiv antwoord aangegeven in rood) | M1: soort vraag | N1: gewicht
A2: A. Kennis en ervaring | B2: 1 kennis uit opleiding | C2: a | D2: nee | E2: minst doorslag-gevend | F2: =VLOOKUP(E2,$M$2:$N$6,2) -> 35 | G2: 0 | J2: =G2/$F$52 -> 0 | M2: het meest doorslaggevend | N2: 150
C3: b | D3: ja | G3: =F2 -> 35 | H3: =MAX(G2:G3) -> 35 | J3: 0.035 | M3: meer doorslaggevend | N3: 125
B4: 2 beroeps-matige kennis | C4: a | D4: nee | E4: minst doorslag-gevend | F4: =VLOOKUP(E2,$M$2:$N$6,2) -> 35 | G4: 0 | I4: =MIN(G2:G5) -> 0 | J4: 0 | M4: midden | N4: 100
C5: b | D5: ja | G5: =F4 -> 35 | H5: =MAX(G4:G5) -> 35 | J5: 0.035 | M5: minder | N5: 60
B6: 2 interesse | C6: a | D6: geen interesse | E6: midden | F6: =VLOOKUP(E6,$M$2:$N$6,2) -> 100 | G6: 0 | J6: 0 | M6: minst doorslaggevend | N6: 35
C7: b | D7: lees financiële bladzijden | G7: 30 | J7: 0.03
C8: c | D8: zoek actief financiële informatie | G8: 70 | J8: 0.07 | M8: totaal | N8: =F52 -> 1000
C9: d | D9: volg financiële markt beroepsmatig | G9: 100 | H9: =MAX(G6:G9) -> 100 | I9: =MIN(G6:G9) -> 0 | J9: 0.1
B10: 3 tabel producten | C10: producten die u kent | D10: T21 | E10: minder | F10: =VLOOKUP(E10,$M$2:$N$6,2) -> 60 | G10: 6 | J10: 0.006
D11: T23 zonder kapitaalsbescherming | G11: 8 | J11: 0.008
D12: T23 met kapitaalsbescherming | G12: 10 | J12: 0.01
D13: T26 | G13: 6 | J13: 0.006
C14: producten waarin occasioneel of regelmatig belegd | D14: T21 | G14: 6 | J14: 0.006
D15: T23 zonder kapitaalsbescherming | G15: 8 | J15: 0.008
D16: T23 met kapitaalsbescherming | G16: 10 | J16: 0.01
D17: T26 | G17: 6 | H17: =SUM(G10:G17) -> 60 | J17: 0.006
C18: kennis andere financiële producten | D18: vrij in te vullen door de klant
C19: beleggingen in andere financiële producten | D19: vrij in te vullen door de klant
A20: B. Financiële situatie | B20: 4 roerend vermogen | C20: a | D20: < €12,500 | E20: het meest doorslag-gevend | F20: =VLOOKUP(E20,$M$2:$N$6,2) -> 150 | G20: 0 | J20: =G20/$F$52 -> 0
C21: b | D21: €12,500-€ 50,000 | G21: 37 | J21: 0.037
C22: c | D22: €50,000- €125,000 | G22: 75 | J22: 0.075
C23: d | D23: €125,000-250,000 | G23: 112 | J23: 0.112
C24: e | D24: >€ 250,000 | G24: 150 | H24: =MAX(G20:G24) -> 150 | I24: =MIN(G20:G24) -> 0 | J24: 0.15
B25: 5 onroerend vermogen | C25: a | D25: nee | E25: minder | F25: =VLOOKUP(E25,$M$2:$N$6,2) -> 60 | G25: 0 | J25: 0
C26: b | D26: ja, vastgoed voor eigen gebruik | G26: 30 | J26: 0.03
C27: c | D27: ja, meerdere onroerende goederen | G27: 60 | H27: =MAX(G25:G27) -> 60 | I27: =MIN(G25:G27) -> 0 | J27: 0.06
B28: 6 inkomen_ netto-inkomen | C28: a | D28: <€1,500 | E28: minder | F28: =VLOOKUP(E28,$M$2:$N$6,2) -> 60 | G28: 0 | J28: 0
C29: b | D29: €1,500- €3,000 | G29: 20 | J29: 0.02
C30: c | D30: €3,000- €5,000 | G30: 40 | J30: 0.04
C31: d | D31: >€5,000 | G31: 60 | H31: =MAX(G28:G31) -> 60 | I31: =MIN(G28:G31) -> 0 | J31: 0.06
B32: 6 inkomen_ maandelijkse lasten | C32: a | D32: <€750
C33: b | D33: €750-€1500
C34: c | D34: €1500-€2500
C35: d | D35: >€2500
B36: 7 spaar-mogelijkheid | C36: a | D36: <€250 | E36: het meest doorslag-gevend | F36: =VLOOKUP(E36,$M$2:$N$6,2) -> 150 | G36: 0 | J36: =G36/$F$52 -> 0
C37: b | D37: €250- €500 | G37: 45 | J37: 0.045
C38: c | D38: €500- €1000 | G38: 105 | J38: 0.105
C39: d | D39: >€1000 | G39: 150 | H39: =MAX(G36:G39) -> 150 | I39: =MIN(G36:G39) -> 0 | J39: 0.15
B40: 8 evolutie financiële situatie | C40: b | D40: ja, negatief | E40: midden | F40: 100 | G40: 0 | J40: 0
C41: c | D41: neen | G41: 50 | J41: 0.05
C42: d | D42: ja, positief | G42: 100 | H42: =MAX(G40:G42) -> 100 | I42: =MIN(G40:G42) -> 0 | J42: 0.1
A43: C. Doelstellingen | B43: 9 belangrijkste doelstelling | C43: a | D43: specifieke uitgave id toekomst | E43: meer doorslag-gevend | F43: =VLOOKUP(E43,$M$2:$N$6,2) -> 125 | G43: 0 | J43: 0
C44: b | D44: algemene vermogensgroei | G44: 87 | J44: 0.087
C45: c | D45: inspelen op beursontwikkeling | G45: 125 | J45: 0.125
C46: d | D46: extra maandelijks inkomen | G46: 19 | J46: 0.019
C47: e | D47: aanvulling toekomstig inkomen | G47: 37 | H47: =MAX(G43:G47) -> 125 | I47: =MIN(G43:G47) -> 0 | J47: 0.037
B48: 10 termijn | C48: a | D48: < 3jaar | E48: meer doorslag-gevend | F48: =VLOOKUP(E48,$M$2:$N$6,2) -> 125 | G48: 0 | J48: 0
C49: b | D49: 3 jaar - 8 jaar | G49: 37 | J49: 0.037
C50: c | D50: 8 jaar-16 jaar | G50: 87 | J50: 0.087
C51: d | D51: > 16 jaar | G51: 125 | H51: =MAX(G48:G51) -> 125 | I51: =MIN(G48:G51) -> 0 | J51: 0.125
E52: TOTAAL | F52: =SUM(F2:F51) -> 1000 | H52: =SUM(H3:H51) -> 1000 | I52: =SUM(I2:I51) -> 0
D53: Range van scores (Max-min score): | F53: =H52-I52 -> 1000
D54: bij 4 profieltypes: range/type | F54: =F53/4 -> 250
D56: profieltypes | E56: min score | F56: max score | J56: DYNAMIQUE
D57: 0. Zonder risico | E57: 0 | F57: 0 | G57: =Profiel_0_Line1 -> 0. Zonder risico | H57: 0 | J57: EQUILIBRE
D58: Non approprié | E58: 0 | F58: 60 | G58: =Profiel_1_Line1 -> 1. Niet geschikt
D59: a. Defensief | E59: =$I$52 -> 0 | F59: =$E$59+$F$54 -> 250 | G59: =Profiel_a_Line1 -> a. Defensief | H59: 1 | J59: NEUTRE
D60: b. Neutraal | E60: =$F$59+1 -> 251 | F60: =$E$60+$F$54-1 -> 500 | G60: =Profiel_b_Line1 -> b. Neutraal | H60: 2 | J60: DEFENSIF
D61: c. Evenwichtig | E61: =$F$60+1 -> 501 | F61: =$E$61+$F$54-1 -> 750 | G61: =Profiel_c_Line1 -> c. Evenwichtig | H61: 3 | J61: SANS RISQUE
D62: d. Dynamisch | E62: =$F$61+1 -> 751 | F62: =$E$62+$F$54-1 -> 1000 | G62: =Profiel_d_Line1 -> d. Dynamisch | H62: 4 | J62: Non approprié
J63: NO PROFILE
B67: vragen | C67: antwoordmogelijkheden | E67: algemene weging | F67: scoring/vraag | G67: scoring/ antwoord | H67: max score | I67: min score | J67: gewicht indiv antwoord tov totale score
A68: Risicoappetijt | B68: 11 | C68: a | D68: kapitaalbehoud is belangrijkste | E68: doorslag-gevend | F68: =VLOOKUP(E68,$M$73:$N$73,2) -> 250 | G68: 0 | J68: =G68/$F$84 -> 0
B69: belegginsgs-voorkeur | C69: b | D69: grootste deel veilig beleggen | G69: 85 | J69: =G69/$F$84 -> 0.085
C70: c | D70: enig risico -hoger rendement | G70: 165 | J70: 0.165
C71: d | D71: zo hoog mogelijk rendement | G71: 250 | H71: =MAX(G68:G71) -> 250 | I71: =MIN(G68:G71) -> 0 | J71: 0.25
B72: 12 | C72: a | D72: opportuniteit om bij te kopen | E72: doorslag-gevend | F72: =VLOOKUP(E72,$M$73:$N$73,2) -> 250 | G72: 250 | J72: 0.25 | M72: soort vraag | N72: gewicht
B73: reactie bij sterke daling beleggingen | C73: b | D73: evolutie opvolgen | G73: 165 | J73: 0.165 | M73: doorslaggevend | N73: 250
C74: c | D74: overweeg verkoop | G74: 85 | J74: 0.085
C75: d | D75: niet slapen | G75: 0 | H75: =MAX(G72:G75) -> 250 | I75: =MIN(G72:G75) -> 0 | J75: 0
B76: 13 | C76: a | D76: ik reageer niet | E76: doorslag-gevend | F76: =VLOOKUP(E76,$M$73:$N$73,2) -> 250 | G76: 250 | J76: 0.25
B77: welke schommeling waarde | C77: b | D77: matig | G77: 165 | J77: 0.165
C78: c | D78: sterk | G78: 85 | J78: 0.085
C79: d | D79: zeer sterk | G79: 0 | H79: =MAX(G76:G79) -> 250 | I79: =MIN(G76:G79) -> 0 | J79: 0
B80: 14 | C80: a | D80: erg moeilijk | E80: doorslag-gevend | F80: =VLOOKUP(E80,$M$73:$N$73,2) -> 250 | G80: 0 | J80: 0
B81: verlies opvangbaar | C81: b | D81: uitgaven aanpassen | G81: 85 | J81: 0.085
C82: c | D82: compenseren | G82: 165 | J82: 0.165
C83: d | D83: geen probleem | G83: 250 | H83: =MAX(G80:G83) -> 250 | I83: =MIN(G80:G83) -> 0 | J83: 0.25
E84: TOTAAL | F84: =SUM(F68:F83) -> 1000 | H84: =SUM(H68:H83) -> 1000 | I84: =SUM(I68:I83) -> 0

Sheet Checklist
A1: =ROW() -> 1
A2: =ROW() -> 2
A3: =ROW() -> 3 | B3: =lbl_Formulier_Titel -> Bemiddelingsfiche Sparen en Beleggen | M3: ="(p1/" & Aant_paginas & ")" -> (p1/7)
A4: =ROW() -> 4 | L4: 1 | M4: v02-16
A5: =ROW() -> 5
A6: =ROW() -> 6
A7: =ROW() -> 7
A8: =ROW() -> 8 | K8: =lbl_Datum -> Datum
A9: =ROW() -> 9 | B9: =lbl_geg_kantoor -> Makelaar
A10: =ROW() -> 10 | E10: =INDIRECT("language!B"&ROW(lbl_geg_kantoor)+1) -> Producentnummer
A11: =ROW() -> 11 | E11: =INDIRECT("language!B"&ROW(lbl_geg_kantoor)+2) -> Referentie
A12: =ROW() -> 12 | E12: =INDIRECT("language!B"&ROW(lbl_geg_kantoor)+2) -> Referentie
A13: =ROW() -> 13 | E13: =INDIRECT("language!B"&ROW(lbl_geg_kantoor)+2) -> Referentie
A14: =ROW() -> 14 | E14: =INDIRECT("language!B"&ROW(lbl_geg_kantoor)+2) -> Referentie
A15: =ROW() -> 15 | E15: =INDIRECT("language!B"&ROW(lbl_geg_kantoor)+6) -> Naam
A16: =ROW() -> 16
A17: =ROW() -> 17 | C17: =IF(INDIRECT("language!B"&ROW(lbl_geg_kantoor)+7)="","",INDIRECT("language!B"&ROW(lbl_geg_kantoor)+7)) -> 
A18: =ROW() -> 18
A19: =ROW() -> 19
A20: =ROW() -> 20 | B20: =INDIRECT("language!B"&ROW(lbl_geg_kantoor)+8) -> Via dit document handelen wij conform de toepasselijke verzekeringsregelgeving, onder meer de regelgeving inzake de verzekerings- en herverzekeringsbemiddeling en de distributie van verzekeringen en inzake het toezicht op de financiële sector en de financiële diensten.
A21: =ROW() -> 21
A22: =ROW() -> 22
A23: =ROW() -> 23
A24: =ROW() -> 24
A25: =ROW() -> 25
A26: =ROW() -> 26 | B26: =INDIRECT("language!B"&ROW(lbl_uw_gegs)) -> Uw gegevens
A27: =ROW() -> 27 | E27: =INDIRECT("language!B"&ROW(lbl_uw_gegs)+1) -> Naam en voornaam van de nemer
A28: =ROW() -> 28 | E28: Adres | J28: Nr: | L28: Bus:
A29: =ROW() -> 29 | E29: Postcode - Gemeente
A30: =ROW() -> 30 | E30: Geboortedatum
A31: =ROW() -> 31 | E31: E-mail adres van de cliënt
A32: =ROW() -> 32
A33: =ROW() -> 33 | C33: =INDIRECT("language!B"&ROW(lbl_uw_gegs)+8) -> U bevestigt dat u de toelating verleent om de wettelijke en contractuele informatie, voor zover mogelijk, niet op papier, maar elektronisch te ontvangen of op de website te consulteren.
A34: =ROW() -> 34
A35: =ROW() -> 35
A36: =ROW() -> 36
A37: =ROW() -> 37
A38: =ROW() -> 38
A39: =ROW() -> 39
A40: =ROW() -> 40 | B40: =INDIRECT("language!B"&ROW(lbl_DEEL1_Titel)) -> DEEL I: Uw verlangens en behoeften voor het sparen of beleggen met een levensverzekering
A41: =ROW() -> 41
A42: =ROW() -> 42
A43: =ROW() -> 43
A44: =ROW() -> 44
A45: =ROW() -> 45
A46: =ROW() -> 46 | B46: =INDIRECT("language!B"&ROW(lbl_DEEL1_Titel)+1) -> Om een analyse te maken van uw verlangens en behoeften, stellen wij u de volgende vragen. Het is belangrijk dat u alle bekende omstandigheden meedeelt die van belang zijn voor het bepalen van uw verlangens en behoeften.
A47: =ROW() -> 47
A48: =ROW() -> 48 | B48: =INDIRECT("language!B"&ROW(lbl_D1_hoedanigheid)) -> In welke hoedanigheid bent u hier?
A49: =ROW() -> 49 | C49: =INDIRECT("language!B"&ROW(lbl_D1_hoedanigheid)+1) -> Particulier | G49: =INDIRECT("language!B"&ROW(lbl_D1_hoedanigheid)+2) -> Rechtspersoon
A50: =ROW() -> 50
A51: =ROW() -> 51 | B51: =INDIRECT("language!B"&ROW(lbl_D1_leeftijd)) -> Wat is uw leeftijd?
A52: =ROW() -> 52 | C52: =INDIRECT("language!B"&ROW(lbl_D1_leeftijd)+1) -> Jonger dan 18 jaar | G52: =INDIRECT("language!B"&ROW(lbl_D1_leeftijd)+2) -> Tussen 18 en 35 jaar | K52: =INDIRECT("language!B"&ROW(lbl_D1_leeftijd)+3) -> Tussen 36 en 50 jaar
A53: =ROW() -> 53 | C53: =INDIRECT("language!B"&ROW(lbl_D1_leeftijd)+4) -> Tussen 51 en 65 jaar | G53: =INDIRECT("language!B"&ROW(lbl_D1_leeftijd)+5) -> Ouder dan 65 jaar
A54: =ROW() -> 54
A55: =ROW() -> 55 | B55: =INDIRECT("language!B"&ROW(lbl_D1_gezinssituatie)) -> Wat is uw gezinssituatie?
A56: =ROW() -> 56 | C56: =INDIRECT("language!B"&ROW(lbl_D1_gezinssituatie)+1) -> Ongehuwd | G56: =INDIRECT("language!B"&ROW(lbl_D1_gezinssituatie)+2) -> Gehuwd | K56: =INDIRECT("language!B"&ROW(lbl_D1_gezinssituatie)+3) -> Wettelijk samenwonend / samenlevingscontract
A57: =ROW() -> 57 | C57: =INDIRECT("language!B"&ROW(lbl_D1_gezinssituatie)+4) -> Andere
A58: =ROW() -> 58 | B58: =INDIRECT("language!B"&ROW(lbl_D1_kinderen)) -> Hebt u kinderen ten laste?
A59: =ROW() -> 59 | C59: =R_Oui_Ja -> Ja | E59: =R_Non_Neen -> Neen
A60: =ROW() -> 60
A61: =ROW() -> 61 | B61: =INDIRECT("language!B"&ROW(lbl_D1_onderwijs)) -> Wat is uw onderwijsniveau?
A62: =ROW() -> 62 | C62: =INDIRECT("language!B"&ROW(lbl_D1_onderwijs)+1) -> Universitair | G62: =INDIRECT("language!B"&ROW(lbl_D1_onderwijs)+2) -> Hoger Onderwijs | K62: =INDIRECT("language!B"&ROW(lbl_D1_onderwijs)+3) -> Middelbaar Onderwijs
A63: =ROW() -> 63 | C63: =INDIRECT("language!B"&ROW(lbl_D1_onderwijs)+4) -> Beroepsonderwijs | G63: =INDIRECT("language!B"&ROW(lbl_D1_onderwijs)+5) -> andere
A64: =ROW() -> 64
A65: =ROW() -> 65 | B65: =INDIRECT("language!B"&ROW(lbl_D1_beroepsklasse)) -> Tot welke beroepsklasse behoort u?
A66: =ROW() -> 66 | C66: =INDIRECT("language!B"&ROW(lbl_D1_beroepsklasse)+1) -> Ambtenaar | G66: =INDIRECT("language!B"&ROW(lbl_D1_beroepsklasse)+2) -> Mandataris van een vennootschap | K66: =INDIRECT("language!B"&ROW(lbl_D1_beroepsklasse)+3) -> Bediende
A67: =ROW() -> 67 | C67: =INDIRECT("language!B"&ROW(lbl_D1_beroepsklasse)+4) -> Arbeider | G67: =INDIRECT("language!B"&ROW(lbl_D1_beroepsklasse)+5) -> Vrij beroep | K67: =INDIRECT("language!B"&ROW(lbl_D1_beroepsklasse)+6) -> Zelfstandige
A68: =ROW() -> 68 | C68: =INDIRECT("language!B"&ROW(lbl_D1_beroepsklasse)+7) -> Student | G68: =INDIRECT("language!B"&ROW(lbl_D1_beroepsklasse)+8) -> Zonder beroep | K68: =INDIRECT("language!B"&ROW(lbl_D1_beroepsklasse)+9) -> Diplomaat
A69: =ROW() -> 69 | C69: =INDIRECT("language!B"&ROW(lbl_D1_beroepsklasse)+10) -> Gepensioneerde | G69: =INDIRECT("language!B"&ROW(lbl_D1_beroepsklasse)+11) -> Vorig beroep (indien relevant):
A70: =ROW() -> 70 | C70: =INDIRECT("language!B"&ROW(lbl_D1_beroepsklasse)+12) -> Geen van voorgaande
A71: =ROW() -> 71
A72: =ROW() -> 72 | C72: =INDIRECT("language!B"&ROW(lbl_D1_wensen)) -> Wat wenst u? Sparen of beleggen ...
A73: =ROW() -> 73 | D73: =INDIRECT("language!B"&ROW(lbl_D1_wensen)+1) -> ... om een levenslange rente te bekomen
A74: =ROW() -> 74 | D74: =INDIRECT("language!B"&ROW(lbl_D1_wensen)+2) -> ... in combinatie met occasionele afhalingen (die aanleiding zouden kunnen geven tot het innen van roerende voorheffing
A75: =ROW() -> 75
A76: =ROW() -> 76 | B76: =INDIRECT("language!B"&ROW(lbl_D1_nabestaanden)) -> Wenst u dat u of uw nabestaanden een aanvullende uitkering ontvangen in één van de volgende situaties?
A77: =ROW() -> 77 | B77: FALSE | C77: =INDIRECT("language!B"&ROW(lbl_D1_nabestaanden)+1) -> Overlijden | F77: FALSE | G77: =INDIRECT("language!B"&ROW(lbl_D1_nabestaanden)+2) -> Invaliditeit | J77: FALSE | K77: =INDIRECT("language!B"&ROW(lbl_D1_nabestaanden)+3) -> Overlijden t.g.v. ongeval
A78: =ROW() -> 78
A79: =ROW() -> 79 | B79: =INDIRECT("language!B"&ROW(lbl_D1_fisc_voordeel)) -> Wenst u een fiscaal voordeel te bekomen?
A80: =ROW() -> 80 | C80: =R_Oui_Ja -> Ja | E80: =R_Non_Neen -> Neen
A81: =ROW() -> 81
A82: =ROW() -> 82
A83: =ROW() -> 83
A84: =ROW() -> 84
A85: =ROW() -> 85 | B85: =lbl_Formulier_Titel -> Bemiddelingsfiche Sparen en Beleggen | M85: ="(p " &L86 &"/" & Aant_paginas & ")" -> (p 2/7)
A86: =ROW() -> 86 | L86: =L4+1 -> 2
A87: =ROW() -> 87
A88: =ROW() -> 88
A89: =ROW() -> 89
A90: =ROW() -> 90 | B90: =INDIRECT("language!B"&ROW(lbl_D1_hoebetalen)) -> Hoe wenst u uw premie(s) te betalen?
A91: =ROW() -> 91 | C91: =INDIRECT("language!B"&ROW(lbl_D1_hoebetalen)+1) -> Eenmalige premie
A92: =ROW() -> 92 | C92: Met premies die vrij gespreid zijn over de toekomstige jaren
A93: =ROW() -> 93 | C93: =INDIRECT("language!B"&ROW(lbl_D1_hoebetalen)+3) -> Met regelmatige periodieke premies | G93: =INDIRECT("language!B"&ROW(lbl_D1_hoebetalen)+4) -> Maandelijks | K93: =INDIRECT("language!B"&ROW(lbl_D1_hoebetalen)+5) -> Trimestrieel
A94: =ROW() -> 94 | G94: =INDIRECT("language!B"&ROW(lbl_D1_hoebetalen)+6) -> Half-jaarlijks | K94: =INDIRECT("language!B"&ROW(lbl_D1_hoebetalen)+7) -> Jaarlijks
A95: =ROW() -> 95 | B95: =txt_Premie_Periodiciteit -> Hoeveel wenst u te betalen (in €)?
A96: =ROW() -> 96 | B96: =INDIRECT("language!B"&ROW(lbl_D1_bedrag_eenmalig)) -> (*) Gelieve bij keuze voor betaling via vrije premie ten minste de grootteorde van het jaarlijks te investeren bedrag te vermelden.
A97: =ROW() -> 97
A98: =ROW() -> 98 | B98: €
A99: =ROW() -> 99
A100: =ROW() -> 100 | B100: =INDIRECT("language!B"&ROW(lbl_D1_tov_roerend_vermogen)) -> Wat vertegenwoordigt dit bedrag ten opzichte van uw roerend vermogen?
A101: =ROW() -> 101 | C101: =INDIRECT("language!B"&ROW(lbl_D1_tov_roerend_vermogen)+1) -> Minder dan 10%
A102: =ROW() -> 102 | C102: =INDIRECT("language!B"&ROW(lbl_D1_tov_roerend_vermogen)+2) -> Tussen 10% en 25%
A103: =ROW() -> 103 | C103: =INDIRECT("language!B"&ROW(lbl_D1_tov_roerend_vermogen)+3) -> Tussen 25% en 50%
A104: =ROW() -> 104 | C104: =INDIRECT("language!B"&ROW(lbl_D1_tov_roerend_vermogen)+4) -> Hier wens ik niet op te antwoorden
A105: =ROW() -> 105 | B105: =INDIRECT("language!B"&ROW(lbl_D1_hoelang_vast)) -> Hoe lang mag uw geld vast staan?
A106: =ROW() -> 106 | C106: =INDIRECT("language!B"&ROW(lbl_D1_hoelang_vast)+1) -> Duurtijd minder dan of gelijk aan 3 jaar
A107: =ROW() -> 107 | C107: =INDIRECT("language!B"&ROW(lbl_D1_hoelang_vast)+2) -> Duurtijd tussen 3 en 8 jaar
A108: =ROW() -> 108 | C108: =INDIRECT("language!B"&ROW(lbl_D1_hoelang_vast)+3) -> Duurtijd tussen 8 en 20 jaar
A109: =ROW() -> 109 | C109: =INDIRECT("language!B"&ROW(lbl_D1_hoelang_vast)+4) -> Meer dan 20 jaar
A110: =ROW() -> 110
A111: =ROW() -> 111 | B111: =INDIRECT("language!B"&ROW(lbl_D1_ondertussen_afhalen)) -> Moet u ondertussen geld kunnen afhalen?
A112: =ROW() -> 112 | C112: =R_Non_Neen -> Neen | G112: =INDIRECT("language!B"&ROW(lbl_D1_ondertussen_afhalen)+2) -> Regelmatig* | K112: =INDIRECT("language!B"&ROW(lbl_D1_ondertussen_afhalen)+3) -> Misschien, op occasionele basis*
A113: =ROW() -> 113 | F113: =INDIRECT("language!B"&ROW(lbl_D1_ondertussen_afhalen)+4) -> *Opgelet voor de kosten van opname en eventuele roerende voorheffing
A114: =ROW() -> 114 | B114: =INDIRECT("language!B"&ROW(lbl_D1_specif_verl)) -> Specifieke verlangens en behoeften
A115: =ROW() -> 115 | B115: =INDIRECT("language!B"&ROW(lbl_D1_specif_verl)+1) -> Hebt u nog andere specifieke verlangens en behoeften of is er nog bijkomende informatie die relevant kan zijn voor het bepalen van uw verlangens en behoeften?
A116: =ROW() -> 116
A117: =ROW() -> 117 | C117: =INDIRECT("language!B"&ROW(lbl_D1_specif_verl)+2) -> Ik wens een verzekering voor een jonge volwassene op vaste termijn (Jongerenverzekering).
A118: =ROW() -> 118 | C118: =INDIRECT("language!B"&ROW(lbl_D1_specif_verl)+3) -> Ik verkies een gegarandeerd rendement boven winstdeling.
A119: =ROW() -> 119 | C119: =INDIRECT("language!B"&ROW(lbl_D1_specif_verl)+4) -> Ik wens de mogelijkheid in de toekomst een aanvullende waarborg bij arbeidsongeschiktheid (AVRI) toe te voegen.
A120: =ROW() -> 120 | C120: =INDIRECT("language!B"&ROW(lbl_D1_specif_verl)+5) -> Ik wens de mogelijkheid in de toekomst de dekking van een minimum kapitaal overlijden toe te voegen.
A121: =ROW() -> 121 | C121: =INDIRECT("language!B"&ROW(lbl_D1_specif_verl)+6) -> Ik wens een rendement gekoppeld aan de beursevolutie.
A122: =ROW() -> 122 | C122: Ik wens de roerende voorheffing te kunnen recupereren via de vennootschapsbelasting.
A123: =ROW() -> 123
A124: =ROW() -> 124 | B124: =INDIRECT("language!B"&ROW(lbl_D1_concreet_doel)) -> Wat is uw concrete spaar- en/of beleggingsdoelstelling? | I124: =INDIRECT("language!B"&ROW(lbl_D1_concreet_doel)+1) -> Andere verlangens en behoeften:
A125: =ROW() -> 125 | C125: =INDIRECT("language!B"&ROW(lbl_D1_concreet_doel)+2) -> Streven naar een bedrag (vermogen) voor een specifieke uitgave in de toekomst
A126: =ROW() -> 126 | C126: =INDIRECT("language!B"&ROW(lbl_D1_concreet_doel)+3) -> Een algemene vermogensgroei
A127: =ROW() -> 127 | C127: =INDIRECT("language!B"&ROW(lbl_D1_concreet_doel)+4) -> Inspelen op beursontwikkelingen
A128: =ROW() -> 128 | C128: =INDIRECT("language!B"&ROW(lbl_D1_concreet_doel)+5) -> Een aanvulling op mijn toekomstig inkomen
A129: =ROW() -> 129
A130: =ROW() -> 130
A131: =ROW() -> 131
A132: =ROW() -> 132
A133: =ROW() -> 133 | B133: =lbl_Formulier_Titel -> Bemiddelingsfiche Sparen en Beleggen | M133: ="(p " &L134 &"/" & Aant_paginas & ")" -> (p 3/7)
A134: =ROW() -> 134 | L134: =L86+1 -> 3
A135: =ROW() -> 135
A136: =ROW() -> 136
A137: =ROW() -> 137
A138: =ROW() -> 138
A139: =ROW() -> 139 | B139: =INDIRECT("language!B"&ROW(lbl_DEEL2_TITEL)) -> DEEL II: Uw analyse
A140: =ROW() -> 140
A141: =ROW() -> 141
A142: =ROW() -> 142
A143: =ROW() -> 143
A144: =ROW() -> 144 | B144: =INDIRECT("language!B"&ROW(lbl_DEEL2_TITEL)+1) -> Om u zo goed mogelijk van dienst te zijn, voorziet de wetgeving dat wij minstens informatie vragen over uw kennis en ervaring met financiële producten.
A145: =ROW() -> 145 | B145: =INDIRECT("language!B"&ROW(lbl_DEEL2_TITEL)+2) -> Om na te gaan of het product geschikt is voor u, dienen wij bovendien een volledige analyse te maken van uw situatie.
A146: =ROW() -> 146 | B146: =INDIRECT("language!B"&ROW(lbl_DEEL2_TITEL)+3) -> Wij maken een analyse van uw situatie op basis van de door u ingevulde vragenlijst.
A147: =ROW() -> 147
A148: =ROW() -> 148
A149: =ROW() -> 149
A150: =ROW() -> 150
A151: =ROW() -> 151 | B151: =INDIRECT("language!B"&ROW(lbl_D2_Profiel)) -> Beleggersprofiel
A152: =ROW() -> 152
A153: =ROW() -> 153
A154: =ROW() -> 154 | B154: =INDIRECT("language!B"&ROW(lbl_D2_Profiel)+1) -> Vragenlijst voor de cliënt/verzekeringnemer:
A155: =ROW() -> 155 | E155: =INDIRECT("language!B"&ROW(lbl_D2_Profiel)+2) -> Naam en voornaam: | G155: =IF(TRIM(G27)="","",G27) -> 
A156: =ROW() -> 156
A157: =ROW() -> 157
A158: =ROW() -> 158 | B158: =INDIRECT("language!B"&ROW(lbl_D2_Profiel)+3) -> Voor welke perso(o)n(en) wordt dit document ingevuld? Indien er 2 verzekeringnemers zijn moet elk van hen een fiche worden ingevuld
A159: =ROW() -> 159
A160: =ROW() -> 160 | C160: =INDIRECT("language!B"&ROW(lbl_D2_Profiel)+4) -> Voor uzelf samen met uw partner
A161: =ROW() -> 161 | C161: =INDIRECT("language!B"&ROW(lbl_D2_Profiel)+5) -> Enkel voor uzelf
A162: =ROW() -> 162
A163: =ROW() -> 163
A164: =ROW() -> 164
A165: =ROW() -> 165 | B165: =INDIRECT("language!B"&ROW(lbl_D2_kennis)) -> A. Kennis en ervaring
A166: =ROW() -> 166
A167: =ROW() -> 167
A168: =ROW() -> 168 | B168: =INDIRECT("language!A"&ROW(lbl_D2_kennis)+1) & ". " & INDIRECT("language!B"&ROW(lbl_D2_kennis)+1) -> 1. Opleiding en kennis
A169: Q1 | B169: =INDIRECT("language!B"&ROW(lbl_D2_kennis)+2) -> Ik heb vanuit mijn opleiding of via zelfstudie specifieke kennis opgebouwd over financiën.
A170: =ROW() -> 170 | C170: =INDIRECT("language!B"&ROW(lbl_D2_kennis)+30) -> Geen specifieke kennis
A171: =ROW() -> 171 | C171: =INDIRECT("language!B"&ROW(lbl_D2_kennis)+31) -> Beperkte kennis
A172: =ROW() -> 172 | C172: =INDIRECT("language!B"&ROW(lbl_D2_kennis)+32) -> Kennis over financiën
A173: =ROW() -> 173
A174: =ROW() -> 174
A175: =ROW() -> 175
A176: Q2 | B176: =INDIRECT("language!A"&ROW(lbl_D2_kennis)+5) & ". " & INDIRECT("language!B"&ROW(lbl_D2_kennis)+5) -> 2. Ervaring en interesse
A177: =ROW() -> 177 | B177: =INDIRECT("language!B"&ROW(lbl_D2_kennis)+6) -> Op welke manier heb ik kennis opgebouwd over de economische en financiële wereld?
A178: =ROW() -> 178 | E178: =INDIRECT("language!B"&ROW(lbl_D2_kennis)+7) -> Dit interesseert me niet of nauwelijks. Ik ga zelf niet op zoek naar informatie.
A179: =ROW() -> 179 | E179: =INDIRECT("language!B"&ROW(lbl_D2_kennis)+8) -> Ik lees regelmatig de financiële bladzijden in mijn krant.
A180: =ROW() -> 180 | E180: =INDIRECT("language!B"&ROW(lbl_D2_kennis)+9) -> Ik zoek actief financiële informatie op. Daarnaast ga ik op zoek naar bijkomende informatie op het internet of woon ik geregeld informatie-avonden over dit onderwerp bij.
A181: =ROW() -> 181 | E181: =INDIRECT("language!B"&ROW(lbl_D2_kennis)+10) -> Ik volg de financiële markten beroepshalve
A182: =ROW() -> 182
A183: =ROW() -> 183 | B183: =INDIRECT("language!A"&ROW(lbl_D2_kennis)+11) & ". " & INDIRECT("language!B"&ROW(lbl_D2_kennis)+11) -> 3. Kennis en ervaring per product
A184: =ROW() -> 184 | D184: =INDIRECT("language!B"&ROW(lbl_D2_kennis)+12) -> Kennis van spaar- en belegginsverzekeringen
A185: =ROW() -> 185
A186: =ROW() -> 186 | D186: =INDIRECT("language!B"&ROW(lbl_D2_kennis)+13) -> Teneinde uw kennis te testen, gelieve te willen antwoorden op deze vragen met waar of niet waar.
A187: Q3 | D187: =INDIRECT("language!B"&ROW(lbl_D2_kennis)+14) -> In een spaarverzekering (tak 21) garandeert de maatschappij een intrestvoet op de betaalde premies? | K187: =R_Vrai_Waar -> Waar | M187: =R_Faux_NietWaar -> Niet waar
A188: Q4 | D188: =INDIRECT("language!B"&ROW(lbl_D2_kennis)+15) -> In een beleggingsverzekering (tak 23) kan ik eventueel 100% van de geïnvesteerde bedragen verliezen? | K188: Waar | M188: Niet waar
A189: Q5 | D189: =INDIRECT("language!B"&ROW(lbl_D2_kennis)+16) -> Wanneer ik een bijkomende storting doe op mijn tak-21-contract, is de maatschappij verplicht om me de initiële intrestvoet van het contract te geven? | K189: Waar | M189: Niet waar
A190: Q6 | D190: =INDIRECT("language!B"&ROW(lbl_D2_kennis)+17) -> De waarde van een beleggingsverzekering (tak 23) kan verhogen of verminderen tengevolge van de evolutie van de financiële markten? | K190: Waar | M190: Niet waar
A191: Q7 | D191: =INDIRECT("language!B"&ROW(lbl_D2_kennis)+18) -> In een beleggingsverzekering (tak 23) garandeert de maatschappij altijd een kapitaal dat minstens gelijk is aan de som van de gestorte premies. | K191: Waar | M191: Niet waar
A192: Q8 | D192: =INDIRECT("language!B"&ROW(lbl_D2_kennis)+33) -> Het rendement van een Beleggingsverzekering (tak 23) is mogelijk hoger dan die van een spaarverzekering (tak 21) maar dat rendement wordt niet gegarandeerd. | K192: Waar | M192: Niet waar
A193: =ROW() -> 193
A194: =ROW() -> 194 | D194: =INDIRECT("language!B"&ROW(lbl_D2_kennis)+19) -> Deed u, in de afgelopen 5 jaar, minstens 2 beleggingen of beleggingen voor een gezamenlijk bedrag van minimaal 5.000 EUR
A195: =ROW() -> 195 | D195: =INDIRECT("language!B"&ROW(lbl_D2_kennis)+20) -> in één van onderstaande categorieën?
A196: =ROW() -> 196 | D196: =INDIRECT("language!B"&ROW(lbl_D2_kennis)+21) -> Levensverzekering met gewaarborgd rendement (Tak21-spaarverzekering) | K196: =R_Oui_Ja -> Ja | M196: =R_Non_Neen -> Neen
A197: =ROW() -> 197 | D197: =INDIRECT("language!B"&ROW(lbl_D2_kennis)+22) -> Levensverzekering zonder gewaarborgd rendement, gekoppeld aan belegginsfondsen (Tak23-beleggingsverzekering) | K197: =R_Oui_Ja -> Ja | M197: =R_Non_Neen -> Neen
A198: Q9 | D198: =INDIRECT("language!B"&ROW(lbl_D2_kennis)+21) -> Levensverzekering met gewaarborgd rendement (Tak21-spaarverzekering) | K198: =R_Oui_Ja -> Ja | M198: =R_Non_Neen -> Neen
A199: Q10 | D199: =INDIRECT("language!B"&ROW(lbl_D2_kennis)+24) -> Levensverzekering die een gewaarborgd rendement (tak 21) combineert met een luik zonder gewaarborgd rendement (tak23) of alleen een levensverzekering zonder gewaarborgd rendement (tak23) | K199: =R_Oui_Ja -> Ja | M199: =R_Non_Neen -> Neen
A200: =ROW() -> 200 | D200: =INDIRECT("language!B"&ROW(lbl_D2_kennis)+25) -> Kapitalisatiecontract met gewaarborgd rendement (Tak26-spaarverzekering) | K200: =R_Oui_Ja -> Ja | M200: =R_Non_Neen -> Neen
... 380 more rows

Sheet parameters (hidden)
C1: variable | D1: stuur-parameters
C2: Aant_paginas | D2: 7
C3: Mijn_userid | D3: v100589
C4: sw_update_profile | D4: TRUE | G4: =INDIRECT("language!B"&ROW(Brief_Inhoud)+9)
C5: Taalkeuze | D5: NL
C6: Cte_Min_Jaarpremie_Periodiek | D6: 300
C7: Cte_Min_Jaarpremie_Uniek | D7: 5000
C8: Gekozen_product
C9: sw_Update_ingevuld_Formulier | D9: FALSE
C10: Sw_Print_Requested_by_Form_button | D10: FALSE
C11: Validate_Premie_Voldoende | D11: FALSE
C12: Aanbevolen_product_RowHeight | D12: 15.75
C13: sw_stopvente | D13: FALSE
C14: sw_Checklist_manually_changed | D14: TRUE
C15: VIVIUM_or_PVGO | D15: VIVIUM
C17: sw_Capiplan_0XXpct | D17: FALSE
C18: sw_Capiplan_0pct | D18: FALSE
C19: sw_Capi23_0pct | D19: FALSE
C20: sw_Capi23_0XXpct | D20: FALSE
C21: sw_jeuneCapi_0XXpct | D21: FALSE
C22: sw_jeuneCapi_0pct | D22: FALSE
C23: sw_jeuneCapi23_0XXpct | D23: FALSE
C24: sw_jeuneCapi23_0pct | D24: FALSE
C25: sw_Stability_Fund | D25: FALSE
C26: sw_Balanced_Fund | D26: FALSE
C27: sw_Dynamic_Fund | D27: FALSE
C28: sw_Aggressive_Fund | D28: FALSE
C29: sw_Combi | D29: FALSE
C30: Previous_Column | D30: 13
C31: Previous_Row | D31: 8
C32: Reset_Loop | D32: FALSE
C33: Reset_by_VBACode | D33: FALSE
D34: Disclaimer decision tree
C35: sw_Passend_Capiplan_0XXpct | D35: TRUE
C36: sw_Passend_Capiplan_0pct | D36: TRUE
C37: sw_Passend_Capi23_0XXpct | D37: TRUE
C38: sw_Passend_Capi23_0pct | D38: TRUE
C39: sw_Passend_jeuneCapi_0XXpct | D39: TRUE
C40: sw_Passend_jeuneCapi_0pct | D40: TRUE
C41: sw_Passend_jeuneCapi23_0XXpct | D41: TRUE
C42: sw_Passend_jeuneCapi23_0pct | D42: TRUE
C43: sw_Passend_Stability_Fund | D43: TRUE
C44: sw_Passend_Balanced_Fund | D44: TRUE
C45: sw_Passend_Dynamic_Fund | D45: TRUE
C46: sw_Passend_Aggressive_Fund | D46: TRUE
C47: sw_Passend_Combi | D47: TRUE
C48: sw_Geen_Passend_Product | D48: TRUE
C49: Previous_Color_Capiplan_0XXpct
C50: Previous_Color_Capiplan_0pct
C51: Previous_Color_Capi23_0pct
C52: Previous_Color_Capi23_0XXpct
C53: Previous_Color_jeuneCapi_0XXpct
C54: Previous_Color_jeuneCapi_0pct
C55: Previous_Color_jeuneCapi23_0XXpct
C56: Previous_Color_Stability_Fund | D56: 11711154
C57: Previous_Color_Balanced_Fund | D57: 11711154
C58: Previous_Color_Dynamic_Fund | D58: 11711154
C59: Previous_Color_Aggressive_Fund | D59: 11711154
C60: Previous_Color_jeuneCapi23_0pct
C61: Previous_Color_Combi
C62: sw_Fiscaal_button | D62: FALSE
C63: sw_Kennis_Ervaring_ingevuld
C64: sw_Spaarcapaciteit_Voldoet | D64: TRUE
C65: sw_klant_kiest_Passend_Prod | D65: FALSE
C66: sw_DEEL1_premiebetaling | D66: TRUE
C67: sw_DEEL1_volledig_ingevuld | D67: TRUE
C68: sw_DEEL1_Fiscaliteit_volledig_ingevuld | D68: TRUE
C69: sw_DEEL2A_volledig_ingevuld | D69: TRUE
C70: sw_DEEL2B_volledig_ingevuld | D70: TRUE
C71: sw_DEEL2B_vragen_CD_ingevuld | D71: TRUE
C72: sw_alle_vragen_beantwoord | D72: TRUE
C73: sw_Vraag_Spaarcapaciteit_beantwoord | D73: TRUE
C74: sw_Profiel_keuze_is_OK | D74: TRUE
C75: sw_klant_Volgt_advies | D75: FALSE
C76: sw_Geen_Product | D76: TRUE
C77: sw_Akkoord_Klant
C78: Aanbevolen_product
C79: variable | D79: Datum variabelen
C80: Geboorte_Datum | D80: =Invul_Geboorte_Datum -> 00:00:00
C81: Fiscaliteit_Einddatum | D81: 2026-06-17
C82: Fiscaliteit_Startdatum | D82: =TODAY()-90 -> 2020-01-25
C83: Fiscaliteit_Max_Looptijd | D83: 12
C84: Duurtijd
C85: variable | D85: Spaarcapaciteit
C86: Mijn_MAAND_Premie
C87: Factor_MAAND_Premie
C88: Berekende_Jaarpremie
C89: Maandelijkse_Spaarmogelijkheid
C90: lbl_Premie_keuze | D90: =Txt_Premie_per_xxx & Gewenste_Premie -> Premie: €
C94: Tabel met alle producten | D94: passend?
A95: Combi 1 | C95: ='Passendheid Vivium ERGO'!T$3 -> Capiplan 0,45% (Enkel Tak 21) | D95: =IF('Passendheid Vivium ERGO'!F$2=C95,"ok","nok") -> nok
C96: ='Passendheid Vivium ERGO'!U$3 -> Capiplan 0% (Enkel Tak 21) | D96: =IF('Passendheid Vivium ERGO'!G$2=C96,"ok","nok") -> nok
C97: ='Passendheid Vivium ERGO'!V$3 -> CAPI 23 0,45% (Enkel Tak 21) | D97: =IF('Passendheid Vivium ERGO'!H$2=C97,"ok","nok") -> nok
C98: ='Passendheid Vivium ERGO'!W$3 -> CAPI 23 0% (Enkel Tak 21) | D98: =IF('Passendheid Vivium ERGO'!I$2=C98,"ok","nok") -> nok
C99: ='Passendheid Vivium ERGO'!X$3 -> Jeugdplan Capiplan 0,45% | D99: =IF('Passendheid Vivium ERGO'!J$2=C99,"ok","nok") -> nok
C100: ='Passendheid Vivium ERGO'!Y$3 -> Jeugdplan Capiplan 0% | D100: =IF('Passendheid Vivium ERGO'!K$2=C100,"ok","nok") -> nok
C101: ='Passendheid Vivium ERGO'!Z$3 -> Jeugdplan CAPI 23 0,45% | D101: =IF('Passendheid Vivium ERGO'!L$2=C101,"ok","nok") -> nok
C102: ='Passendheid Vivium ERGO'!AA$3 -> Jeugdplan CAPI 23 0% | D102: =IF('Passendheid Vivium ERGO'!M$2=C102,"ok","nok") -> nok
A103: Combi 2 | C103: ='Passendheid Vivium ERGO'!AB$3 -> Stability fund | D103: =IF(sw_FUNDS_OK="FUNDS OK","ok","nok") -> nok
C104: ='Passendheid Vivium ERGO'!AC$3 -> Balanced fund | D104: =IF(sw_FUNDS_OK="FUNDS OK","ok","nok") -> nok
C105: ='Passendheid Vivium ERGO'!AD$3 -> Dynamic fund | D105: =IF(sw_FUNDS_OK="FUNDS OK","ok","nok") -> nok
C106: ='Passendheid Vivium ERGO'!AE$3 -> Aggressive fund | D106: =IF(sw_FUNDS_OK="FUNDS OK","ok","nok") -> nok
C111: Controle of alle vragen zijn beantwoord | D111: onbeantwoord
B112: Vr 1 | C112: =INDIRECT("language!B"&ROW(lbl_D1_hoedanigheid)) -> In welke hoedanigheid bent u hier? | D112: Option Button Ingevuld
B113: Vr 2 | C113: =INDIRECT("language!B"&ROW(lbl_D1_leeftijd)) -> Wat is uw leeftijd? | D113: onbeantwoord
B114: Vr 3 | C114: =INDIRECT("language!B"&ROW(lbl_D1_gezinssituatie)) -> Wat is uw gezinssituatie? | D114: onbeantwoord
B115: Vr 4 | C115: =INDIRECT("language!B"&ROW(lbl_D1_kinderen)) -> Hebt u kinderen ten laste? | D115: onbeantwoord
B116: Vr 5 | C116: =INDIRECT("language!B"&ROW(lbl_D1_onderwijs)) -> Wat is uw onderwijsniveau? | D116: onbeantwoord
B117: Vr 6 | C117: =INDIRECT("language!B"&ROW(lbl_D1_beroepsklasse)) -> Tot welke beroepsklasse behoort u? | D117: onbeantwoord
B118: Vr 7 | C118: =INDIRECT("language!B"&ROW(lbl_D1_wensen)) -> Wat wenst u? Sparen of beleggen ... | D118: Option Button Ingevuld
B119: Vr 8 | C119: =INDIRECT("language!B"&ROW(lbl_D1_nabestaanden)) -> Wenst u dat u of uw nabestaanden een aanvullende uitkering ontvangen in één van de volgende situaties? | D119: onbeantwoord
B120: Vr 9 | C120: =INDIRECT("language!B"&ROW(lbl_D1_fisc_voordeel)) -> Wenst u een fiscaal voordeel te bekomen? | D120: onbeantwoord
B121: Vr 10 | C121: =INDIRECT("language!B"&ROW(lbl_D1_hoebetalen)) -> Hoe wenst u uw premie(s) te betalen? | D121: Option Button Ingevuld
B122: Vr 11 | C122: =txt_Premie_Periodiciteit -> Hoeveel wenst u te betalen (in €)? | D122: onbeantwoord
B123: Vr 12 | C123: =INDIRECT("language!B"&ROW(lbl_D1_tov_roerend_vermogen)) -> Wat vertegenwoordigt dit bedrag ten opzichte van uw roerend vermogen? | D123: onbeantwoord
B124: Vr 13 | C124: =INDIRECT("language!B"&ROW(lbl_D1_hoelang_vast)) -> Hoe lang mag uw geld vast staan? | D124: onbeantwoord
B125: Vr 14 | C125: =INDIRECT("language!B"&ROW(lbl_D1_ondertussen_afhalen)) -> Moet u ondertussen geld kunnen afhalen? | D125: onbeantwoord
B126: Vr 15 | C126: =INDIRECT("language!B"&ROW(lbl_D1_specif_verl)) -> Specifieke verlangens en behoeften | D126: onbeantwoord
B127: Vr 16 | C127: =INDIRECT("language!B"&ROW(lbl_D1_concreet_doel)) -> Wat is uw concrete spaar- en/of beleggingsdoelstelling? | D127: onbeantwoord
B128: Vr 17 | C128: =INDIRECT("language!B"&ROW(lbl_D2_Profiel)+3) -> Voor welke perso(o)n(en) wordt dit document ingevuld? Indien er 2 verzekeringnemers zijn moet elk van hen een fiche worden ingevuld | D128: onbeantwoord
B129: Vr 18 | C129: =INDIRECT("language!A"&ROW(lbl_D2_kennis)+1) & ". " & INDIRECT("language!B"&ROW(lbl_D2_kennis)+1) -> 1. Opleiding en kennis | D129: onbeantwoord
B130: Vr 19 | C130: =INDIRECT("language!A"&ROW(lbl_D2_kennis)+5) & ". " & INDIRECT("language!B"&ROW(lbl_D2_kennis)+5) -> 2. Ervaring en interesse | D130: onbeantwoord
B131: Vr 20 | C131: =INDIRECT("language!A"&ROW(lbl_D2_kennis)+11) & ". " & INDIRECT("language!B"&ROW(lbl_D2_kennis)+11) -> 3. Kennis en ervaring per product | D131: onbeantwoord
B132: Vr 21 | C132: =INDIRECT("language!B"&ROW(lbl_D2_kennis)+13) -> Teneinde uw kennis te testen, gelieve te willen antwoorden op deze vragen met waar of niet waar. | D132: onbeantwoord | E132: titel
B133: Vr 22 | C133: =INDIRECT("language!B"&ROW(lbl_D2_kennis)+14) -> In een spaarverzekering (tak 21) garandeert de maatschappij een intrestvoet op de betaalde premies? | D133: onbeantwoord
B134: Vr 23 | C134: =INDIRECT("language!B"&ROW(lbl_D2_kennis)+15) -> In een beleggingsverzekering (tak 23) kan ik eventueel 100% van de geïnvesteerde bedragen verliezen? | D134: onbeantwoord
B135: Vr 24 | C135: =INDIRECT("language!B"&ROW(lbl_D2_kennis)+16) -> Wanneer ik een bijkomende storting doe op mijn tak-21-contract, is de maatschappij verplicht om me de initiële intrestvoet van het contract te geven? | D135: onbeantwoord
B136: Vr 25 | C136: =INDIRECT("language!B"&ROW(lbl_D2_kennis)+17) -> De waarde van een beleggingsverzekering (tak 23) kan verhogen of verminderen tengevolge van de evolutie van de financiële markten? | D136: onbeantwoord
B137: Vr 26 | C137: =INDIRECT("language!B"&ROW(lbl_D2_kennis)+18) -> In een beleggingsverzekering (tak 23) garandeert de maatschappij altijd een kapitaal dat minstens gelijk is aan de som van de gestorte premies. | D137: onbeantwoord
B138: Vr 27 | C138: =INDIRECT("language!B"&ROW(lbl_D2_kennis)+33) -> Het rendement van een Beleggingsverzekering (tak 23) is mogelijk hoger dan die van een spaarverzekering (tak 21) maar dat rendement wordt niet gegarandeerd. | D138: onbeantwoord
B139: Vr 28 | C139: =INDIRECT("language!B"&ROW(lbl_D2_kennis)+19) -> Deed u, in de afgelopen 5 jaar, minstens 2 beleggingen of beleggingen voor een gezamenlijk bedrag van minimaal 5.000 EUR | D139: onbeantwoord | E139: titel
B140: Vr 29 | C140: =INDIRECT("language!B"&ROW(lbl_D2_kennis)+20) -> in één van onderstaande categorieën? | D140: onbeantwoord | E140: titel
B141: Vr 30 | C141: =INDIRECT("language!B"&ROW(lbl_D2_kennis)+21) -> Levensverzekering met gewaarborgd rendement (Tak21-spaarverzekering) | D141: onbeantwoord
B142: Vr 31 | C142: =INDIRECT("language!B"&ROW(lbl_D2_kennis)+24) -> Levensverzekering die een gewaarborgd rendement (tak 21) combineert met een luik zonder gewaarborgd rendement (tak23) of alleen een levensverzekering zonder gewaarborgd rendement (tak23) | D142: onbeantwoord
B143: Vr 32 | C143: =INDIRECT("language!A"&ROW(lbl_D2_finan_situatie)+1) & ". " & INDIRECT("language!B"&ROW(lbl_D2_finan_situatie)+1) -> 4. Vermogen: Roerende goederen | D143: onbeantwoord
B144: Vr 33 | C144: =INDIRECT("language!A"&ROW(lbl_D2_finan_situatie)+9) & ". " & INDIRECT("language!B"&ROW(lbl_D2_finan_situatie)+9) -> 5. Vermogen: Onroerende goederen | D144: onbeantwoord
B145: Vr 34 | C145: =INDIRECT("language!A"&ROW(lbl_D2_finan_situatie)+15) & ". " & INDIRECT("language!B"&ROW(lbl_D2_finan_situatie)+15) -> 6. Inkomenssituatie | D145: onbeantwoord
B146: Vr 35 | C146: =INDIRECT("language!A"&ROW(lbl_D2_finan_situatie)+28) & ". " & INDIRECT("language!B"&ROW(lbl_D2_finan_situatie)+28) -> 7. Mogelijkheid tot sparen | D146: onbeantwoord
B147: Vr 36 | C147: =INDIRECT("language!A"&ROW(lbl_D2_finan_situatie)+35) & ". " & INDIRECT("language!B"&ROW(lbl_D2_finan_situatie)+35) -> 8. Verwachting evolutie financiële situatie | D147: onbeantwoord
B148: Vr 37 | C148: =INDIRECT("language!A"&ROW(lbl_D2_Doelst)+1) & ". " & INDIRECT("language!B"&ROW(lbl_D2_Doelst)+1) -> 9. Wat is uw belangrijkste spaar- en/of beleggingsdoelstelling? | D148: onbeantwoord
B149: Vr 38 | C149: =INDIRECT("language!A"&ROW(lbl_D2_Doelst)+6) & ". " & INDIRECT("language!B"&ROW(lbl_D2_Doelst)+6) -> 10. De termijn van uw doelstelling | D149: onbeantwoord
B150: Vr 39 | C150: =INDIRECT("language!A"&ROW(lbl_D2_houding_tov_risico)+1) & ". " & INDIRECT("language!B"&ROW(lbl_D2_houding_tov_risico)+1) -> 11. Welke beschrijving past het best bij uw spaar- en/of beleggingsvoorkeuren? | D150: onbeantwoord
B151: Vr 40 | C151: =INDIRECT("language!A"&ROW(lbl_D2_houding_tov_risico)+6) & ". " & INDIRECT("language!B"&ROW(lbl_D2_houding_tov_risico)+6) -> 12. Hoe zou u reageren indien uw spaar- en/of beleggingsverzekering op 1 maand tijd 50% van zijn oorspronkelijke waarde zou verliezen? | D151: onbeantwoord
B152: Vr 41 | C152: =INDIRECT("language!A"&ROW(lbl_D2_houding_tov_risico)+11) & ". " & INDIRECT("language!B"&ROW(lbl_D2_houding_tov_risico)+11) -> 13. Welke schommelingen van uw spaar- en/of beleggingsverzekering kan u tolereren tijdens de looptijd van uw contract? | D152: onbeantwoord
B153: Vr 42 | C153: =INDIRECT("language!A"&ROW(lbl_D2_houding_tov_risico)+17) & ". " & INDIRECT("language!B"&ROW(lbl_D2_houding_tov_risico)+17) -> 14. Als de spaar- en/of beleggingsverzekering die u voor ogen heeft, fors lager zou uitkomen dan het initieel bedrag, kunt u dat dan opvangen met ander inkomen en/of vermogen? | D153: onbeantwoord
B154: Vr 43 | C154: Geen_antwoord (43) | D154: onbeantwoord
B155: Vr 44 | C155: Einde Controle of alle vragen zijn beantwoord
B156: Vr 45 | C156: initialise (45) | D156: Option Button Ingevuld
B157: Vr 46 | C157: Formeel Akkooord (46)
B160: Pos_Logos | C160: Positionering van het logo per merk | D160: LEFT
C161: LOGO_PVGO_left | D161: 26.5
C162: LOGO_VIVIUM_left | D162: 27.2
C163: LOGO_PVGO_top_offset | D163: 15
C164: LOGO_VIVIUM_top_offset | D164: 1

Sheet Language (hidden)
A1: Range Name | B1: current language | C1: NL - Actueel | D1: FR - Actueel | E1: Differences with PVGO | F1: NL - PVGO | G1: FR - PVGO | I1: NL - VIVIUM | J1: FR - VIVIUM
A2: Range Name
A3: Ja | B3: Ja | C3: Ja | D3: Oui
A4: Neen | B4: Neen | C4: Neen | D4: Non
A5: Vrai | B5: Waar | C5: Waar | D5: Vrai
A6: Faux | B6: Niet waar | C6: Niet waar | D6: Faux
A7: Lbl_Plan_Jeunesse | B7: Jeugdplan | C7: Jeugdplan | D7: Plan Jeunesse
A9: Range Name
A10: Gekozen_Periodiciteit
A11: Inkomen_Onvoldoende | B11: Inkomen onvoldoende. (Zie antwoord op vraag 7 'Inkomen' versus antwoord op vraag 8 'Lasten'). | C11: Inkomen onvoldoende. (Zie antwoord op vraag 7 'Inkomen' versus antwoord op vraag 8 'Lasten'). | D11: Revenus insuffisants : Voir la réponse sur la question 7 'Revenus' par rapport la question 8 'Charges'.
A12: Meer_dan_1000 | B12: meer dan € 1.000 | C12: meer dan € 1.000 | D12: plus de € 1.000
A13: Nog_een_vraag_onbeantwoord | B13: Nog min. 1 vraag te beantwoorden of --> u hebt op minstens 1 vraag aangegeven dat u daarop niet wenst te antwoorden. | C13: ="Nog min. 1 vraag te beantwoorden of " & CHAR(10) & "--> u hebt op minstens 1 vraag aangegeven dat u daarop niet wenst te antwoorden." -> Nog min. 1 vraag te beantwoorden of --> u hebt op minstens 1 vraag aangegeven dat u daarop niet wenst te antwoorden. | D13: ="Il reste encore au moins 1 question à répondre ou bien " & CHAR(10) & "--> vous avez souhaité de ne pas répondre à au moins une question." -> Il reste encore au moins 1 question à répondre ou bien --> vous avez souhaité de ne pas répondre à au moins une question.
A14: txt_Aanv_Waarb_Invalid | B14: Aanvullende waarborg invaliditeit | C14: Aanvullende waarborg invaliditeit | D14: Garantie complémentaire invalidité :
A15: txt_Aanv_Waarb_Overlijden | B15: Aanvullende waarborg overlijden: | C15: Aanvullende waarborg overlijden: | D15: Garantie complémentaire en cas de décès :
A16: txt_Aanv_Waarb_Ongeval | B16: Aanvullende waarborg overlijden door ongeval | C16: Aanvullende waarborg overlijden door ongeval | D16: Garantie complémentaire en cas de décès par accident :
A17: txt_Bijlage | B17: Bijlage | C17: Bijlage | D17: Annexe
A18: txt_Geen_Fisc_Aftrek | B18: Geen fiscale aftrekbaarheid | C18: Geen fiscale aftrekbaarheid | D18: Pas de déductibilité fiscale
A19: Txt_Geen_Passend_product | B19: Geen passend product | C19: Geen passend product | D19: Aucun produit approprié
A20: Txt_Geen_Profiel | B20: Geen profielbepaling mogelijk | C20: Geen profielbepaling mogelijk | D20: Impossible de déterminer le profil
A21: txt_Geen_profielbepaling_mogelijk | B21: Geen profielbepaling mogelijk | C21: Geen profielbepaling mogelijk | D21: Impossible de déterminer le profil
A22: txt_LTS | B22: Lange termijnsparen (fiscale duurtijd) | C22: Lange termijnsparen (fiscale duurtijd) | D22: Épargne à long terme (durée fiscale)
A23: Txt_Premie | B23: (*) Gelieve bij keuze voor betaling via vrije premie ten minste de grootteorde van het te investeren bedrag te vermelden. | C23: (*) Gelieve bij keuze voor betaling via vrije premie ten minste de grootteorde van het te investeren bedrag te vermelden. | D23: (*) Veuillez au moins mentionner l’ordre de grandeur du montant à investir lors du choix du paiement via prime libre.
A24: txt_Premie_eenmalig | B24: Hoeveel € wenst u als eenmalige premie te betalen? | C24: Hoeveel € wenst u als eenmalige premie te betalen? | D24: Combien d’€ souhaitez-vous payer comme prime unique ?
A25: txt_Premie_Halfjaarlijks | B25: Hoeveel € wenst u halfjaarlijks te betalen? | C25: Hoeveel € wenst u halfjaarlijks te betalen? | D25: Combien d’€ souhaitez-vous payer par semestre ?
A26: txt_Premie_Jaarlijks | B26: Hoeveel € wenst u per jaar te betalen? | C26: Hoeveel € wenst u per jaar te betalen? | D26: Combien d’€ souhaitez-vous payer par an ?
A27: txt_Premie_Maandelijks | B27: Hoeveel € wenst u maandelijks te betalen? | C27: Hoeveel € wenst u maandelijks te betalen? | D27: Combien d’€ souhaitez-vous payer chaque mois ?
A28: Txt_Premie_per_xxx | B28: Premie: € | C28: ="Premie: € " -> Premie: € | D28: ="Prime: € " -> Prime: €
A29: txt_Premie_Periodiciteit | B29: Hoeveel wenst u te betalen (in €)? | C29: Hoeveel wenst u te betalen (in €)? | D29: Quel montant souhaitez-vous verser en EUR?
A30: txt_Premie_Trimestrieel | B30: Hoeveel € wenst u per trimester te betalen? | C30: Hoeveel € wenst u per trimester te betalen? | D30: Combien d’€ souhaitez-vous payer par trimestre ?
A31: txt_Premie_Vrij | B31: Hoeveel € wenst u te betalen? | C31: Hoeveel € wenst u te betalen? | D31: Combien d’€ souhaitez-vous payer ?
A32: txt_PSP | B32: Pensioensparen (fiscale duurtijd) | C32: Pensioensparen (fiscale duurtijd) | D32: Épargne pension (durée fiscale)
A33: txt_Vragenlijst_nr1 | B33: Fout in vragenlijst 'DEEL II.A' of 'DEEL II.B' | C33: Fout in vragenlijst 'DEEL II.A' of 'DEEL II.B' | D33: Erreur dans le questionnaire 'PARTIE II.A' ou 'PARTIE II.B'
A34: txt_Vragenlijst_nr2 | B34: Fout in vragenlijst 'DEEL II.D' (Uw houding t.o.v. risico) | C34: Fout in vragenlijst 'DEEL II.D' (Uw houding t.o.v. risico) | D34: Erreur dans le questionnaire 'PARTIE II.D' (votre attitude face au risque)
A35: txt_Combi_ProductKeuze | B35: Ik wens deze 2 producten te combineren | C35: Ik wens deze 2 producten te combineren | D35: Je souhaite combiner ces deux produits
A36: lbl_Formulier_Titel | B36: Bemiddelingsfiche Sparen en Beleggen | C36: Bemiddelingsfiche Sparen en Beleggen | D36: Fiche d'intermédiation Épargne et Placements
A37: Lbl_Datum | B37: Datum | C37: Datum | D37: Date
A38: lbl_geg_Kantoor | B38: Makelaar | C38: Makelaar | D38: Intermédiaire | E38: <<<<< | F38: Gegevens van het kantoor | G38: Coordonnées de l'agence | I38: Makelaar | J38: Intermédiaire
A39: lbl_geg_Kantoor+1 | B39: Producentnummer | C39: Producentnummer | D39: N° Producteur | E39: <<<<< | F39: Kantoor | G39: Agence | I39: Producentnummer | J39: N° Producteur
A40: lbl_geg_Kantoor+2 | B40: Referentie | C40: Referentie | D40: Référence | E40: <<<<< | F40: Naam adviseur | G40: Nom du conseiller | I40: Referentie | J40: Référence
A41: lbl_geg_Kantoor+3 | B41: Adres / Maatschappelijke zetel | C41: Adres / Maatschappelijke zetel | D41: Adresse / Siège social
A42: lbl_geg_Kantoor+4 | B42: Postcode -Plaats | C42: Postcode -Plaats | D42: Code postal – Localité
A43: lbl_geg_Kantoor+5 | B43: Inschrijvingsnummer FSMA | C43: Inschrijvingsnummer FSMA | D43: Numéro d'inscription à la FSMA
A44: lbl_geg_Kantoor+6 | B44: Naam | C44: Naam | D44: Nom | E44: <<<<< | F44: P&V agentnummer | G44: Numéro agent P&V | I44: Naam | J44: Nom
A45: lbl_geg_Kantoor+7 | E45: <<<<< | F45: Verbonden verzekeringsagent voor P&V Verzekeringen c.v.b.a. | G45: Agent d'assurances lié agissant pour le compte de P&V Assurances S.C.R.L.
A46: lbl_geg_Kantoor+8 | B46: Via dit document handelen wij conform de toepasselijke verzekeringsregelgeving, onder meer de regelgeving inzake de verzekerings- en herverzekeringsbemiddeling en de distributie van verzekeringen en inzake het toezicht op de financiële sector en de financiële diensten. | C46: Via dit document handelen wij conform de toepasselijke verzekeringsregelgeving, onder meer de regelgeving inzake de verzekerings- en herverzekeringsbemiddeling en de distributie van verzekeringen en inzake het toezicht op de financiële sector en de financiële diensten. | D46: Par le biais du présent document, nous agissons conformément à la réglementation applicable en matière d'assurances, notamment à la réglementation relative à l'intermédiation en assurances et en réassurances et à la distribution d'assurances ainsi qu'à la réglementation relative à la surveillance du secteur financier et aux services financiers.
A47: lbl_uw_gegs | B47: Uw gegevens | C47: Uw gegevens | D47: Vos coordonnées
A48: lbl_uw_gegs+1 | B48: Naam en voornaam van de nemer | C48: Naam en voornaam van de nemer | D48: Nom et prénom du preneur
A49: lbl_uw_gegs+2 | B49: Adres | C49: Adres | D49: Adresse
A50: lbl_uw_gegs+3 | B50: Nr: | C50: Nr: | D50: Numéro
A51: lbl_uw_gegs+4 | B51: Bus: | C51: Bus: | D51: Boîte
A52: lbl_uw_gegs+5 | B52: Postcode - Gemeente | C52: Postcode - Gemeente | D52: Code postal – Localité
A53: lbl_uw_gegs+6 | B53: Geboortedatum | C53: Geboortedatum | D53: Date de naissance
A54: lbl_uw_gegs+7 | B54: E-mail adres van de cliënt | C54: E-mail adres van de cliënt | D54: Adresse e-mail du client
A55: lbl_uw_gegs+8 | B55: U bevestigt dat u de toelating verleent om de wettelijke en contractuele informatie, voor zover mogelijk, niet op papier, maar elektronisch te ontvangen of op de website te consulteren. | C55: U bevestigt dat u de toelating verleent om de wettelijke en contractuele informatie, voor zover mogelijk, niet op papier, maar elektronisch te ontvangen of op de website te consulteren. | D55: Vous confirmez votre accord de recevoir les informations légales et contractuelles, dans la mesure du possible, non pas au format papier mais par voie électronique ou de les consulter sur le site Internet.
A56: lbl_DEEL1_Titel | B56: DEEL I: Uw verlangens en behoeften voor het sparen of beleggen met een levensverzekering | C56: DEEL I: Uw verlangens en behoeften voor het sparen of beleggen met een levensverzekering | D56: PARTIE I : vos exigences et besoins relatifs à l'épargne ou aux placements par le biais d'une assurance vie
A57: lbl_DEEL1_Titel+1 | B57: Om een analyse te maken van uw verlangens en behoeften, stellen wij u de volgende vragen. Het is belangrijk dat u alle bekende omstandigheden meedeelt die van belang zijn voor het bepalen van uw verlangens en behoeften. | C57: Om een analyse te maken van uw verlangens en behoeften, stellen wij u de volgende vragen. Het is belangrijk dat u alle bekende omstandigheden meedeelt die van belang zijn voor het bepalen van uw verlangens en behoeften. | D57: Afin de procéder à l'analyse de vos exigences et besoins, nous vous proposons de répondre aux questions suivantes. Il est important que vous nous communiquiez toutes les circonstances connues qui peuvent influencer la définition de vos exigences et besoins.
A58: lbl_D1_hoedanigheid | B58: In welke hoedanigheid bent u hier? | C58: In welke hoedanigheid bent u hier? | D58: En quelle qualité agissez-vous dans le cas d'espèce ?
A59: lbl_D1_hoedanigheid+1 | B59: Particulier | C59: Particulier | D59: Particulier
A60: lbl_D1_hoedanigheid+2 | B60: Rechtspersoon | C60: Rechtspersoon | D60: Mandataire d'une personne morale
A61: lbl_D1_leeftijd | B61: Wat is uw leeftijd? | C61: Wat is uw leeftijd? | D61: Quel âge avez-vous ?
A62: lbl_D1_leeftijd+1 | B62: Jonger dan 18 jaar | C62: Jonger dan 18 jaar | D62: Moins de 18 ans
A63: lbl_D1_leeftijd+2 | B63: Tussen 18 en 35 jaar | C63: Tussen 18 en 35 jaar | D63: Entre 18 et 35 ans
A64: lbl_D1_leeftijd+3 | B64: Tussen 36 en 50 jaar | C64: Tussen 36 en 50 jaar | D64: Entre 36 et 50 ans
A65: lbl_D1_leeftijd+4 | B65: Tussen 51 en 65 jaar | C65: Tussen 51 en 65 jaar | D65: Entre 51 et 65 ans
A66: lbl_D1_leeftijd+5 | B66: Ouder dan 65 jaar | C66: Ouder dan 65 jaar | D66: Plus de 65 ans
A67: lbl_D1_gezinssituatie | B67: Wat is uw gezinssituatie? | C67: Wat is uw gezinssituatie? | D67: Quelle est votre situation familiale ?
A68: lbl_D1_gezinssituatie+1 | B68: Ongehuwd | C68: Ongehuwd | D68: Célibataire
A69: lbl_D1_gezinssituatie+2 | B69: Gehuwd | C69: Gehuwd | D69: Marié(e)
A70: lbl_D1_gezinssituatie+3 | B70: Wettelijk samenwonend / samenlevingscontract | C70: Wettelijk samenwonend / samenlevingscontract | D70: Cohabitant(e) légal(e)/sous contrat de vie commune
A71: lbl_D1_gezinssituatie+4 | B71: Andere | C71: Andere | D71: Autre
A72: lbl_D1_kinderen | B72: Hebt u kinderen ten laste? | C72: Hebt u kinderen ten laste? | D72: Avez-vous des enfants à charge ?
A73: lbl_D1_onderwijs | B73: Wat is uw onderwijsniveau? | C73: Wat is uw onderwijsniveau? | D73: Quel est votre niveau d'études ?
A74: lbl_D1_onderwijs+1 | B74: Universitair | C74: Universitair | D74: Universitaire
A75: lbl_D1_onderwijs+2 | B75: Hoger Onderwijs | C75: Hoger Onderwijs | D75: Enseignement supérieur
A76: lbl_D1_onderwijs+3 | B76: Middelbaar Onderwijs | C76: Middelbaar Onderwijs | D76: Enseignement secondaire
A77: lbl_D1_onderwijs+4 | B77: Beroepsonderwijs | C77: Beroepsonderwijs | D77: Enseignement professionnel
A78: lbl_D1_onderwijs+5 | B78: andere | C78: andere | D78: Autre
A79: lbl_D1_beroepsklasse | B79: Tot welke beroepsklasse behoort u? | C79: Tot welke beroepsklasse behoort u? | D79: À quelle catégorie professionnelle appartenez-vous ?
A80: lbl_D1_beroepsklasse+1 | B80: Ambtenaar | C80: Ambtenaar | D80: Fonctionnaire
A81: lbl_D1_beroepsklasse+2 | B81: Mandataris van een vennootschap | C81: Mandataris van een vennootschap | D81: Mandataire d'une société
A82: lbl_D1_beroepsklasse+3 | B82: Bediende | C82: Bediende | D82: Employé(e)
A83: lbl_D1_beroepsklasse+4 | B83: Arbeider | C83: Arbeider | D83: Ouvrier(-ère)
A84: lbl_D1_beroepsklasse+5 | B84: Vrij beroep | C84: Vrij beroep | D84: Profession libérale
A85: lbl_D1_beroepsklasse+6 | B85: Zelfstandige | C85: Zelfstandige | D85: Indépendant(e)
A86: lbl_D1_beroepsklasse+7 | B86: Student | C86: Student | D86: Étudiant(e)
A87: lbl_D1_beroepsklasse+8 | B87: Zonder beroep | C87: Zonder beroep | D87: Sans emploi
A88: lbl_D1_beroepsklasse+9 | B88: Diplomaat | C88: Diplomaat | D88: Diplomate
A89: lbl_D1_beroepsklasse+10 | B89: Gepensioneerde | C89: Gepensioneerde | D89: Retraité(e)
A90: lbl_D1_beroepsklasse+11 | B90: Vorig beroep (indien relevant): | C90: Vorig beroep (indien relevant): | D90: Ancien emploi (si pertinent) :
A91: lbl_D1_beroepsklasse+12 | B91: Geen van voorgaande | C91: Geen van voorgaande | D91: Aucune des propositions susmentionnées
A92: lbl_D1_wensen | B92: Wat wenst u? Sparen of beleggen ... | C92: Wat wenst u? Sparen of beleggen ... | D92: Que souhaitez-vous ? Épargner ou investir...
A93: lbl_D1_wensen+1 | B93: ... om een levenslange rente te bekomen | C93: ... om een levenslange rente te bekomen | D93: ... sans prévision de retrait (pour le moment)?
A94: lbl_D1_wensen+2 | B94: ... in combinatie met occasionele afhalingen (die aanleiding zouden kunnen geven tot het innen van roerende voorheffing | C94: ... in combinatie met occasionele afhalingen (die aanleiding zouden kunnen geven tot het innen van roerende voorheffing | D94: ... en combinaison avec des retraits occasionnels (qui pourraient faire l'objet de la perception d'un précompte mobilier) ?
A95: lbl_D1_nabestaanden | B95: Wenst u dat u of uw nabestaanden een aanvullende uitkering ontvangen in één van de volgende situaties? | C95: Wenst u dat u of uw nabestaanden een aanvullende uitkering ontvangen in één van de volgende situaties? | D95: Souhaitez-vous percevoir (ou que vos proches perçoivent) un revenu complémentaire dans l'une des situations suivantes ?
A96: lbl_D1_nabestaanden+1 | B96: Overlijden | C96: Overlijden | D96: Décès
A97: lbl_D1_nabestaanden+2 | B97: Invaliditeit | C97: Invaliditeit | D97: Invalidité
A98: lbl_D1_nabestaanden+3 | B98: Overlijden t.g.v. ongeval | C98: Overlijden t.g.v. ongeval | D98: Décès par accident
A99: lbl_D1_fisc_voordeel | B99: Wenst u een fiscaal voordeel te bekomen? | C99: Wenst u een fiscaal voordeel te bekomen? | D99: Souhaitez-vous bénéficier d'un avantage fiscal ?
A100: nvt | D100: Dans l'affirmative, veuillez alors compléter la ficher d'intermédiation L'épargne avec une assurance sans prime unique
A101: lbl_D1_hoebetalen | B101: Hoe wenst u uw premie(s) te betalen? | C101: Hoe wenst u uw premie(s) te betalen? | D101: Quel type de prime souhaitez-vous verser ?
A102: lbl_D1_hoebetalen+1 | B102: Eenmalige premie | C102: Eenmalige premie | D102: Une prime unique
A103: lbl_D1_hoebetalen+2 | B103: Met premies die vrij gespreid zijn over de toekomstige jaren | C103: Met premies die vrij gespreid zijn over de toekomstige jaren | D103: Des primes librement réparties durant les années à venir
A104: lbl_D1_hoebetalen+3 | B104: Met regelmatige periodieke premies | C104: Met regelmatige periodieke premies | D104: Des primes périodiques régulières
A105: lbl_D1_hoebetalen+4 | B105: Maandelijks | C105: Maandelijks | D105: Mensuellement
A106: lbl_D1_hoebetalen+5 | B106: Trimestrieel | C106: Trimestrieel | D106: Trimestriellement
A107: lbl_D1_hoebetalen+6 | B107: Half-jaarlijks | C107: Half-jaarlijks | D107: Semestriellement
A108: lbl_D1_hoebetalen+7 | B108: Jaarlijks | C108: Jaarlijks | D108: Annuellement
A109: lbl_D1_bedrag_eenmalig | B109: (*) Gelieve bij keuze voor betaling via vrije premie ten minste de grootteorde van het jaarlijks te investeren bedrag te vermelden. | C109: (*) Gelieve bij keuze voor betaling via vrije premie ten minste de grootteorde van het jaarlijks te investeren bedrag te vermelden. | D109: (*) En cas de primes libres, veuillez préciser au moins l'ordre de grandeur du montant annuel à investir.
A110: lbl_D1_tov_roerend_vermogen | B110: Wat vertegenwoordigt dit bedrag ten opzichte van uw roerend vermogen? | C110: Wat vertegenwoordigt dit bedrag ten opzichte van uw roerend vermogen? | D110: Que représente ce montant par rapport à votre patrimoine mobilier ?
A111: lbl_D1_tov_roerend_vermogen+1 | B111: Minder dan 10% | C111: Minder dan 10% | D111: Moins de 10 %
A112: lbl_D1_tov_roerend_vermogen+2 | B112: Tussen 10% en 25% | C112: Tussen 10% en 25% | D112: Entre 10 et 25 %
A113: lbl_D1_tov_roerend_vermogen+3 | B113: Tussen 25% en 50% | C113: Tussen 25% en 50% | D113: Entre 25 et 50 %
A114: lbl_D1_tov_roerend_vermogen+4 | B114: Hier wens ik niet op te antwoorden | C114: Hier wens ik niet op te antwoorden | D114: Je ne souhaite pas répondre
A115: lbl_D1_hoelang_vast | B115: Hoe lang mag uw geld vast staan? | C115: Hoe lang mag uw geld vast staan? | D115: Combien de temps votre argent peut-il rester immobilisé ?
A116: lbl_D1_hoelang_vast+1 | B116: Duurtijd minder dan of gelijk aan 3 jaar | C116: Duurtijd minder dan of gelijk aan 3 jaar | D116: Durée inférieure ou égal à 3 ans
A117: lbl_D1_hoelang_vast+2 | B117: Duurtijd tussen 3 en 8 jaar | C117: Duurtijd tussen 3 en 8 jaar | D117: Durée entre 3 et 8 ans
A118: lbl_D1_hoelang_vast+3 | B118: Duurtijd tussen 8 en 20 jaar | C118: Duurtijd tussen 8 en 20 jaar | D118: Durée entre 8 et 20 ans
A119: lbl_D1_hoelang_vast+4 | B119: Meer dan 20 jaar | C119: Meer dan 20 jaar | D119: Supérieur à 20 ans
A120: lbl_D1_ondertussen_afhalen | B120: Moet u ondertussen geld kunnen afhalen? | C120: Moet u ondertussen geld kunnen afhalen? | D120: Devez-vous pouvoir retirer de l'argent pendant cette période ?
A121: lbl_D1_ondertussen_afhalen+1 | B121: Neen | C121: Neen | D121: Non
A122: lbl_D1_ondertussen_afhalen+2 | B122: Regelmatig* | C122: Regelmatig* | D122: Oui, régulièrement*
A123: lbl_D1_ondertussen_afhalen+3 | B123: Misschien, op occasionele basis* | C123: Misschien, op occasionele basis* | D123: Peut-être, de manière occasionnelle*
A124: lbl_D1_ondertussen_afhalen+4 | B124: *Opgelet voor de kosten van opname en eventuele roerende voorheffing | C124: *Opgelet voor de kosten van opname en eventuele roerende voorheffing | D124: *Attention aux frais de retrait et précompte mobilier éventuel
A125: lbl_D1_specif_verl | B125: Specifieke verlangens en behoeften | C125: Specifieke verlangens en behoeften | D125: Exigences et besoins spécifiques
A126: lbl_D1_specif_verl+1 | B126: Hebt u nog andere specifieke verlangens en behoeften of is er nog bijkomende informatie die relevant kan zijn voor het bepalen van uw verlangens en behoeften? | C126: Hebt u nog andere specifieke verlangens en behoeften of is er nog bijkomende informatie die relevant kan zijn voor het bepalen van uw verlangens en behoeften? | D126: Avez-vous encore d'autres exigences et besoins spécifiques ? Y a-t-il encore d'autres informations susceptibles d'être utiles afin de déterminer vos exigences et besoins ?
A127: lbl_D1_specif_verl+2 | B127: Ik wens een verzekering voor een jonge volwassene op vaste termijn (Jongerenverzekering). | C127: Ik wens een verzekering voor een jonge volwassene op vaste termijn (Jongerenverzekering). | D127: Je souhaite souscrire une assurance à durée fixe pour un jeune adulte (Assurance jeunes).
A128: lbl_D1_specif_verl+3 | B128: Ik verkies een gegarandeerd rendement boven winstdeling. | C128: Ik verkies een gegarandeerd rendement boven winstdeling. | D128: Je préfère un rendement garanti à une participation aux bénéfices.
A129: lbl_D1_specif_verl+4 | B129: Ik wens de mogelijkheid in de toekomst een aanvullende waarborg bij arbeidsongeschiktheid (AVRI) toe te voegen. | C129: Ik wens de mogelijkheid in de toekomst een aanvullende waarborg bij arbeidsongeschiktheid (AVRI) toe te voegen. | D129: Je souhaite avoir la possibilité d'ajouter à l'avenir une garantie complémentaire en cas d'incapacité de travail (ACRI).
A130: lbl_D1_specif_verl+5 | B130: Ik wens de mogelijkheid in de toekomst de dekking van een minimum kapitaal overlijden toe te voegen. | C130: Ik wens de mogelijkheid in de toekomst de dekking van een minimum kapitaal overlijden toe te voegen. | D130: Je souhaite avoir la possibilité d'ajouter à l'avenir la couverture d'un capital décès minimal.
A131: lbl_D1_specif_verl+6 | B131: Ik wens een rendement gekoppeld aan de beursevolutie. | C131: Ik wens een rendement gekoppeld aan de beursevolutie. | D131: Je souhaite disposer d'un rendement lié à l'évolution des cours boursiers.
A132: nvt | B132: Ik wens de roerende voorheffing te kunnen recupereren via de vennootschapsbelasting. | C132: Ik wens de roerende voorheffing te kunnen recupereren via de vennootschapsbelasting. | D132: Je souhaite pouvoir récupérer le précompte mobilier grâce à l'impôt des sociétés.
A133: lbl_D1_concreet_doel | B133: Wat is uw concrete spaar- en/of beleggingsdoelstelling? | C133: Wat is uw concrete spaar- en/of beleggingsdoelstelling? | D133: Quel est, concrètement, votre objectif d'épargne et/ou d'investissement ?
A134: lbl_D1_concreet_doel+1 | B134: Andere verlangens en behoeften: | C134: Andere verlangens en behoeften: | D134: Autres exigences et besoins :
A135: lbl_D1_concreet_doel+2 | B135: Streven naar een bedrag (vermogen) voor een specifieke uitgave in de toekomst | C135: Streven naar een bedrag (vermogen) voor een specifieke uitgave in de toekomst | D135: Obtenir un certain montant (des fonds) destiné(s) à un achat bien précis
A136: lbl_D1_concreet_doel+3 | B136: Een algemene vermogensgroei | C136: Een algemene vermogensgroei | D136: Faire fructifier mon patrimoine
A137: lbl_D1_concreet_doel+4 | B137: Inspelen op beursontwikkelingen | C137: Inspelen op beursontwikkelingen | D137: Profiter de l'évolution des cours boursiers
A138: lbl_D1_concreet_doel+5 | B138: Een aanvulling op mijn toekomstig inkomen | C138: Een aanvulling op mijn toekomstig inkomen | D138: Compléter mes futurs revenus
A139: lbl_DEEL2_TITEL | B139: DEEL II: Uw analyse | C139: DEEL II: Uw analyse | D139: PARTIE II : Votre analyse
A140: lbl_DEEL2_TITEL+1 | B140: Om u zo goed mogelijk van dienst te zijn, voorziet de wetgeving dat wij minstens informatie vragen over uw kennis en ervaring met financiële producten. | C140: Om u zo goed mogelijk van dienst te zijn, voorziet de wetgeving dat wij minstens informatie vragen over uw kennis en ervaring met financiële producten. | D140: Afin de vous fournir un service optimal, la loi nous impose de vous poser quelques questions qui nous permettront d'évaluer vos connaissances et votre expérience en matière de produits financiers.
A141: lbl_DEEL2_TITEL+2 | B141: Om na te gaan of het product geschikt is voor u, dienen wij bovendien een volledige analyse te maken van uw situatie. | C141: Om na te gaan of het product geschikt is voor u, dienen wij bovendien een volledige analyse te maken van uw situatie. | D141: Afin de vérifier si le produit vous convient, nous devons également procéder à une analyse complète de votre situation.
A142: lbl_DEEL2_TITEL+3 | B142: Wij maken een analyse van uw situatie op basis van de door u ingevulde vragenlijst. | C142: Wij maken een analyse van uw situatie op basis van de door u ingevulde vragenlijst. | D142: Pour ce faire, nous nous baserons sur les réponses que vous aurez apportées à ce questionnaire.
A143: lbl_D2_Profiel | B143: Beleggersprofiel | C143: Beleggersprofiel | D143: Profil d'investisseur
A144: lbl_D2_Profiel+1 | B144: Vragenlijst voor de cliënt/verzekeringnemer: | C144: Vragenlijst voor de cliënt/verzekeringnemer: | D144: Questionnaire à l'intention du client/preneur d'assurance :
A145: lbl_D2_Profiel+2 | B145: Naam en voornaam: | C145: Naam en voornaam: | D145: Nom et prénom :
A146: lbl_D2_Profiel+3 | B146: Voor welke perso(o)n(en) wordt dit document ingevuld? Indien er 2 verzekeringnemers zijn moet elk van hen een fiche worden ingevuld | C146: Voor welke perso(o)n(en) wordt dit document ingevuld? Indien er 2 verzekeringnemers zijn moet elk van hen een fiche worden ingevuld | D146: Pour qui complétez-vous ce document ? Dans le cas de 2 preneurs une fiche pour chacun doit-être complétée
A147: lbl_D2_Profiel+4 | B147: Voor uzelf samen met uw partner | C147: Voor uzelf samen met uw partner | D147: Pour vous-même et votre conjoint
A148: lbl_D2_Profiel+5 | B148: Enkel voor uzelf | C148: Enkel voor uzelf | D148: Uniquement pour vous-même
A149: lbl_D2_kennis | B149: A. Kennis en ervaring | C149: A. Kennis en ervaring | D149: A. Connaissances et expérience
A150: 1 | B150: Opleiding en kennis | C150: Opleiding en kennis | D150: Formation et connaissances
A151: lbl_D2_kennis+2 | B151: Ik heb vanuit mijn opleiding of via zelfstudie specifieke kennis opgebouwd over financiën. | C151: Ik heb vanuit mijn opleiding of via zelfstudie specifieke kennis opgebouwd over financiën. | D151: J'ai, au cours de ma formation, de manière autodidacte ou à titre professionnel, acquis des connaissances spécifiques en matière de produits financiers.
A152: lbl_D2_kennis+3 | B152: Beroep en kennis | C152: Beroep en kennis | D152: Profession et connaissances
A153: lbl_D2_kennis+4 | B153: Hebt u beroepsmatig specifieke kennis opgebouwd over financiën? | C153: Hebt u beroepsmatig specifieke kennis opgebouwd over financiën? | D153: Avez-vous, à titre professionnel, acquis des connaissances spécifiques en matière de produits financiers ?
A154: 2 | B154: Ervaring en interesse | C154: Ervaring en interesse | D154: Expérience et intérêt
A155: lbl_D2_kennis+6 | B155: Op welke manier heb ik kennis opgebouwd over de economische en financiële wereld? | C155: Op welke manier heb ik kennis opgebouwd over de economische en financiële wereld? | D155: De quelle manière est-ce que je m'informe sur le monde économique et financier?
A156: lbl_D2_kennis+7 | B156: Dit interesseert me niet of nauwelijks. Ik ga zelf niet op zoek naar informatie. | C156: Dit interesseert me niet of nauwelijks. Ik ga zelf niet op zoek naar informatie. | D156: Cela ne m'intéresse pas
A157: lbl_D2_kennis+8 | B157: Ik lees regelmatig de financiële bladzijden in mijn krant. | C157: Ik lees regelmatig de financiële bladzijden in mijn krant. | D157: Je lis régulièrement la presse financière
A158: lbl_D2_kennis+9 | B158: Ik zoek actief financiële informatie op. Daarnaast ga ik op zoek naar bijkomende informatie op het internet of woon ik geregeld informatie-avonden over dit onderwerp bij. | C158: Ik zoek actief financiële informatie op. Daarnaast ga ik op zoek naar bijkomende informatie op het internet of woon ik geregeld informatie-avonden over dit onderwerp bij. | D158: Je suis de près l'actualité financière, je cherche des informations complémentaires ou j'assiste régulièrement à des événements d'information sur le sujet
A159: lbl_D2_kennis+10 | B159: Ik volg de financiële markten beroepshalve | C159: Ik volg de financiële markten beroepshalve | D159: Je suis les marchés financiers à titre professionnel
A160: 3 | B160: Kennis en ervaring per product | C160: Kennis en ervaring per product | D160: Connaissances et expérience par produit
A161: lbl_D2_kennis+12 | B161: Kennis van spaar- en belegginsverzekeringen | C161: Kennis van spaar- en belegginsverzekeringen | D161: Connaissances en matière d'assurances épargne et investissement
A162: lbl_D2_kennis+13 | B162: Teneinde uw kennis te testen, gelieve te willen antwoorden op deze vragen met waar of niet waar. | C162: Teneinde uw kennis te testen, gelieve te willen antwoorden op deze vragen met waar of niet waar. | D162: Afin de tester vos connaissances, pouvez-vous répondre aux questions suivantes par vrai ou faux ?
A163: lbl_D2_kennis+14 | B163: In een spaarverzekering (tak 21) garandeert de maatschappij een intrestvoet op de betaalde premies? | C163: In een spaarverzekering (tak 21) garandeert de maatschappij een intrestvoet op de betaalde premies? | D163: Dans une assurance épargne (de la Branche 21), l'assureur garantit un taux d'intérêt sur les primes payées?
A164: lbl_D2_kennis+15 | B164: In een beleggingsverzekering (tak 23) kan ik eventueel 100% van de geïnvesteerde bedragen verliezen? | C164: In een beleggingsverzekering (tak 23) kan ik eventueel 100% van de geïnvesteerde bedragen verliezen? | D164: Dans une assurance placement de la Branche 23, je pourrais éventuellement perdre 100% du capital investi?
A165: lbl_D2_kennis+16 | B165: Wanneer ik een bijkomende storting doe op mijn tak-21-contract, is de maatschappij verplicht om me de initiële intrestvoet van het contract te geven? | C165: Wanneer ik een bijkomende storting doe op mijn tak-21-contract, is de maatschappij verplicht om me de initiële intrestvoet van het contract te geven? | D165: En Branche 21, si je fais un versement complémentaire sur mon contrat, l'assureur doit obligatoirement m'octroyer le taux initial du contrat sur ce versement?
A166: lbl_D2_kennis+17 | B166: De waarde van een beleggingsverzekering (tak 23) kan verhogen of verminderen tengevolge van de evolutie van de financiële markten? | C166: De waarde van een beleggingsverzekering (tak 23) kan verhogen of verminderen tengevolge van de evolutie van de financiële markten? | D166: La valeur d'une assurance-placement de la branche 23 peut fluctuer suite aux évolutions des marchés financiers?
A167: lbl_D2_kennis+18 | B167: In een beleggingsverzekering (tak 23) garandeert de maatschappij altijd een kapitaal dat minstens gelijk is aan de som van de gestorte premies. | C167: In een beleggingsverzekering (tak 23) garandeert de maatschappij altijd een kapitaal dat minstens gelijk is aan de som van de gestorte premies. | D167: Dans une assurance placement de la branche 23, l'assureur garantit toujours un capital au moins égal à la somme des primes versées.
A168: lbl_D2_kennis+19 | B168: Deed u, in de afgelopen 5 jaar, minstens 2 beleggingen of beleggingen voor een gezamenlijk bedrag van minimaal 5.000 EUR | C168: Deed u, in de afgelopen 5 jaar, minstens 2 beleggingen of beleggingen voor een gezamenlijk bedrag van minimaal 5.000 EUR | D168: Durant les 5 dernières années avez-vous investi dans les catégories ci-dessous, au moins à 2 reprises ou pour des montants cumulés
A169: lbl_D2_kennis+20 | B169: in één van onderstaande categorieën? | C169: in één van onderstaande categorieën? | D169: de plus de 5.000 euros ?
A170: lbl_D2_kennis+21 | B170: Levensverzekering met gewaarborgd rendement (Tak21-spaarverzekering) | C170: Levensverzekering met gewaarborgd rendement (Tak21-spaarverzekering) | D170: Assurance vie avec rendement garanti (assurance épargne de la Branche 21)
A171: lbl_D2_kennis+22 | B171: Levensverzekering zonder gewaarborgd rendement, gekoppeld aan belegginsfondsen (Tak23-beleggingsverzekering) | C171: Levensverzekering zonder gewaarborgd rendement, gekoppeld aan belegginsfondsen (Tak23-beleggingsverzekering) | D171: Assurance vie sans rendement garanti, liée à des fonds d'investissement (assurance placement de la Branche 23)
A172: lbl_D2_kennis+23 | B172: Levensverzekering zonder gewaarborgd rendement, maar met bescherming van de inleg, gekoppeld aan beleggingsfondsen (Tak23-beleggingsverzekering) | C172: Levensverzekering zonder gewaarborgd rendement, maar met bescherming van de inleg, gekoppeld aan beleggingsfondsen (Tak23-beleggingsverzekering) | D172: Assurance vie sans rendement garanti mais avec protection du capital, liée à des fonds d'investissement (assurance placement de la Branche 23)
A173: lbl_D2_kennis+24 | B173: Levensverzekering die een gewaarborgd rendement (tak 21) combineert met een luik zonder gewaarborgd rendement (tak23) of alleen een levensverzekering zonder gewaarborgd rendement (tak23) | C173: Levensverzekering die een gewaarborgd rendement (tak 21) combineert met een luik zonder gewaarborgd rendement (tak23) of alleen een levensverzekering zonder gewaarborgd rendement (tak23) | D173: Assurance vie comprenant un volet avec rendement garanti et un volet sans rendement garanti (assurance placement des branches 21 et 23) ou un assurance vie lié à des fonds d'investissement uniquement (Branche 23)
A174: lbl_D2_kennis+25 | B174: Kapitalisatiecontract met gewaarborgd rendement (Tak26-spaarverzekering) | C174: Kapitalisatiecontract met gewaarborgd rendement (Tak26-spaarverzekering) | D174: Contrat de capitalisation avec rendement garanti (assurance épargne de la Branche 26)
A175: lbl_D2_kennis+26 | B175: Kennis van andere financiële producten | C175: Kennis van andere financiële producten | D175: Connaissances d 'autres produits financiers
A176: lbl_D2_kennis+27 | B176: Preciseer welke andere financiële producten u kent, waarbij kennen betekent dat u een goed idee hebt van de risico’s, het verwachte rendement en de fiscale kenmerken van de beleggingen die in deze categorie thuishoren. | C176: Preciseer welke andere financiële producten u kent, waarbij kennen betekent dat u een goed idee hebt van de risico’s, het verwachte rendement en de fiscale kenmerken van de beleggingen die in deze categorie thuishoren. | D176: Indiquez les autres produits financiers que vous connaissez, c'est-à-dire les produits pour lesquels vous avez une idée précise des risques existants, du rendement escompté et des caractéristiques fiscales afférant aux placements qui font partie de cette catégorie.
A177: lbl_D2_kennis+28 | B177: Beleggingen in andere financiële producten | C177: Beleggingen in andere financiële producten | D177: Placements dans d'autres produits financiers
A178: lbl_D2_kennis+29 | B178: Gelieve te preciseren welke financiële producten en per categorie aan te geven of u hierin reeds belegt of heeft belegd | C178: Gelieve te preciseren welke financiële producten en per categorie aan te geven of u hierin reeds belegt of heeft belegd | D178: Veuillez préciser les produits financiers concernés en indiquant par catégorie si vous investissez ou avez déjà investi dans ces produits.
A179: lbl_D2_kennis+30 | B179: Geen specifieke kennis | C179: Geen specifieke kennis | D179: Pas de connaissances spécifiques
A180: lbl_D2_kennis+31 | B180: Beperkte kennis | C180: Beperkte kennis | D180: Connaissances limitées
A181: lbl_D2_kennis+32 | B181: Kennis over financiën | C181: Kennis over financiën | D181: Connaissances sur les finances
A182: lbl_D2_kennis+33 | B182: Het rendement van een Beleggingsverzekering (tak 23) is mogelijk hoger dan die van een spaarverzekering (tak 21) maar dat rendement wordt niet gegarandeerd. | C182: Het rendement van een Beleggingsverzekering (tak 23) is mogelijk hoger dan die van een spaarverzekering (tak 21) maar dat rendement wordt niet gegarandeerd. | D182: Le rendement d'une assurance-placement de la branche 23 est potentiellement plus élevé que celui d'une assurance-épargne de la branche 21, mais il n'est pas garanti.
A183: lbl_D2_finan_situatie | B183: B. Financiële situatie | C183: B. Financiële situatie | D183: B. Situation financière
A184: 4 | B184: Vermogen: Roerende goederen | C184: Vermogen: Roerende goederen | D184: Patrimoine : biens mobiliers
A185: lbl_D2_finan_situatie+2 | B185: Wat is de waarde van uw roerend vermogen (cash, spaar- en zichtrekening, levensverzekering, obligaties, aandelen en andere beleggingen)? | C185: Wat is de waarde van uw roerend vermogen (cash, spaar- en zichtrekening, levensverzekering, obligaties, aandelen en andere beleggingen)? | D185: Quelle est la valeur de mon patrimoine mobilier (liquidités, compte d'épargne et à vue, assurance vie, obligations, actions et autres placements?)
A186: lbl_D2_finan_situatie+3 | B186: Minder dan €12.500 | C186: Minder dan €12.500 | D186: Moins de 12 500 €
A187: lbl_D2_finan_situatie+4 | B187: Van €12.500 tot €50.000 | C187: Van €12.500 tot €50.000 | D187: Entre 12 500 et 50 000 €
A188: lbl_D2_finan_situatie+5 | B188: Van €50.000 tot €125.000 | C188: Van €50.000 tot €125.000 | D188: Entre 50 000 et 125 000 €
A189: lbl_D2_finan_situatie+6 | B189: Van €125.000 tot €250.000 | C189: Van €125.000 tot €250.000 | D189: Entre 125 000 et 250 000 €
A190: lbl_D2_finan_situatie+7 | B190: Meer dan €250.000 | C190: Meer dan €250.000 | D190: Plus de 250 000 €
A191: lbl_D2_finan_situatie+8 | B191: Hier wens ik niet op te antwoorden | C191: Hier wens ik niet op te antwoorden | D191: Je ne souhaite pas répondre
A192: 5 | B192: Vermogen: Onroerende goederen | C192: Vermogen: Onroerende goederen | D192: Patrimoine : biens immobiliers
A193: lbl_D2_finan_situatie+10 | B193: Bent u eigenaar van een onroerend goed (huizen, appartementen, bouwgronden)? | C193: Bent u eigenaar van een onroerend goed (huizen, appartementen, bouwgronden)? | D193: Etes-vous propriétaire d'un bien immobilier (maisons, appartements, terrains à bâtir)?
A194: lbl_D2_finan_situatie+11 | B194: Neen, ik ben geen eigenaar van een onroerend goed. | C194: Neen, ik ben geen eigenaar van een onroerend goed. | D194: Non, je ne possède pas de bien immobilier.
A195: lbl_D2_finan_situatie+12 | B195: Ja, ik ben eigenaar van vastgoed voor eigen gebruik (gezinswoning) | C195: Ja, ik ben eigenaar van vastgoed voor eigen gebruik (gezinswoning) | D195: Oui, je possède un bien immobilier à usage privé (habitation familiale).
A196: lbl_D2_finan_situatie+13 | B196: Ja, ik ben eigenaar van meerdere onroerende goederen en/of niet allemaal voor eigen gebruik | C196: Ja, ik ben eigenaar van meerdere onroerende goederen en/of niet allemaal voor eigen gebruik | D196: Oui, je possède plusieurs biens immobiliers et/ou qui ne sont pas tous à usage privé.
A197: lbl_D2_finan_situatie+14 | B197: Hier wens ik niet op te antwoorden | C197: Hier wens ik niet op te antwoorden | D197: Je ne souhaite pas répondre
A198: 6 | B198: Inkomenssituatie | C198: Inkomenssituatie | D198: Revenus
A199: lbl_D2_finan_situatie+16 | B199: Wat is uw maandelijks netto-inkomen (loon, uitkeringen, huurinkomsten, intresten)? | C199: Wat is uw maandelijks netto-inkomen (loon, uitkeringen, huurinkomsten, intresten)? | D199: À combien s'élèvent vos revenus mensuels nets (salaire, allocations, revenus locatifs, intérêts) ?
A200: lbl_D2_finan_situatie+17 | B200: Minder dan €1.500 | C200: Minder dan €1.500 | D200: Moins de 1 500 €
A201: lbl_D2_finan_situatie+18 | B201: Van €1.500 tot €3.000 | C201: Van €1.500 tot €3.000 | D201: Entre 1 500 et 3 000 €
... 180 more rows

Sheet Manuele Simulatie (hidden)
A1: kolomheaders: zie legende (*) | B1: Q1. kennis uit opleiding | C1: a | D1: geen specifieke kennis | E1: minst doorslag-gevend | F1: =VLOOKUP(E1,$K$2:$L$6,2) -> 35 | G1: 0 | I1: =IF(H1="x",G1,IF(H2="x",G2,IF(H3="X",G3,"nog in te vullen"))) -> nog in te vullen | K1: soort vraag | L1: gewicht | N1: Check-up klant | O1: resultaat klant | P1: 0.5 | Q1: maximum score | R1: antwoord klant
A2: zwarte tekst = dd 11/2018 | C2: b | D2: Beperkte kennis | G2: 25 | K2: het meest doorslaggevend | L2: 150 | N2: Kennis en ervaring | O2: =R2/$Q$2 -> 0 | Q2: =SUM(Q3:Q5) -> 170 | R2: =SUM(R3:R5) -> 0
A3: A. Kennis en ervaring | C3: c | D3: Kennis over financiën | G3: 50 | K3: meer doorslaggevend | L3: 125 | N3: 1 kennis uit opleiding | O3: =R3/$Q$2 ->  | P3: 0.5 | Q3: =F1 -> 35 | R3: =I1 -> nog in te vullen
B4: 2 beroeps-matige kennis | C4: a | D4: nee | E4: minst doorslag-gevend | F4: =VLOOKUP(E4,$K$2:$L$6,2) -> 35 | G4: 0 | J4: =IF(H4="x",G4,IF(H5="X",G5,"nog in te vullen")) -> nog in te vullen | K4: midden | L4: 100 | N4: 2 beroepskennis | O4: =R4/$Q$2 ->  | P4: 0.5 | Q4: =F4 -> 35 | R4: =J4 -> nog in te vullen
C5: b | D5: ja | G5: 35 | K5: minder | L5: 60 | N5: 3 interesse | O5: =R5/$Q$2 ->  | P5: 0.5 | Q5: =F6 -> 100 | R5: =I6 -> nog in te vullen
B6: Q2. interesse | C6: a | D6: geen interesse | E6: midden | F6: =VLOOKUP(E6,$K$2:$L$6,2) -> 100 | G6: 0 | I6: =IF(H6="x",G6,IF(H7="x",G7,IF(H8="x",G8,IF(H9="x",G9,"nog in te vullen")))) -> nog in te vullen | K6: minst doorslaggevend | L6: 35 | O6: =100%-SUM(O3:O5) -> 
C7: b | D7: lees financiële bladzijden | G7: 10 | N7: Financiële situatie | O7: =R7/$Q$7 -> 0 | Q7: =SUM(Q8:Q11) -> 420 | R7: =SUM(R8:R11) -> 0
C8: c | D8: zoek actief financiële informatie | G8: 30 | K8: totaal | L8: 1000 | N8: 4 roerend vermogen | O8: =R8/$Q$7 ->  | P8: 0.5 | Q8: =F22 -> 150 | R8: =I22 -> nog in te vullen
C9: d | D9: volg financiële markt beroepsmatig | G9: 50 | N9: 5 onroerend vermogen | O9: =R9/$Q$7 ->  | P9: 0.5 | Q9: =F27 -> 60 | R9: =I27 -> nog in te vullen
B10: 3 tabel producten | C10: producten die u kent | D10: Q3. T21 | E10: minder | F10: =VLOOKUP(E10,$K$2:$L$6,2) -> 60 | G10: 20 | I10: =IF(H10="x",G10,0)+IF(H11="x",G11,0)+IF(H12="x",G12,0)+IF(H13="x",G13,0)+IF(H14="x",G14,0)+IF(H15="x",G15,0)+IF(H16="x",G16,0)+IF(H17="x",G17,0)+IF(H18="x",G18,0)+IF(H19="x",G19,0) -> 0 | K10: (*) LEGENDE kolommen | N10: 6a netto-inkomen | O10: =R10/$Q$7 ->  | P10: 0.5 | Q10: =F30 -> 60 | R10: =I30 -> nog in te vullen
D11: Q4. T23 zonder kapitaalsbescherming | G11: 20 | K11: vragen | L11: B | N11: 7 spaarmogelijkheid | O11: =R11/$Q$7 ->  | P11: 0.5 | Q11: =F38 -> 150 | R11: =I38 -> nog in te vullen
D12: Q5. T23 met kapitaalsbescherming | G12: 20 | K12: antwoordmogelijkheden | L12: C/D | O12: =100%-(SUM(O8:O11)) -> 
D13: Q6. T26 | G13: 20 | K13: algemene weging | L13: E | N13: Risico-appetijt | O13: =R13/$Q$13 -> 0 | Q13: =SUM(Q15:Q18) -> 1000 | R13: =SUM(R15:R18) -> 0
D14: Q7. T23 mogelijk hoger dan T21 | G14: 20 | K14: scoring/vraag | L14: F
C15: producten waarin occasioneel of regelmatig belegd | D15: Q8. T21 | G15: 20 | K15: scoring/ antwoord | L15: G | N15: 11 belegginsgsvoorkeur | O15: =R15/$Q$13 ->  | P15: 0.5 | Q15: =F60 -> 250 | R15: =I60 -> nog in te vullen
D16: T23 zonder kapitaalsbescherming | G16: 0 | K16: keuze antwoord | L16: H | N16: 12 reactie bij sterke daling beleggingen | O16: =R16/$Q$13 ->  | P16: 0.5 | Q16: =F64 -> 250 | R16: =I64 -> nog in te vullen
D17: T23 met kapitaalsbescherming | G17: 0 | K17: score antwoord | L17: I | N17: 13 welke schommeling waarde | O17: =R17/$Q$13 ->  | P17: 0.5 | Q17: =F68 -> 250 | R17: =I68 -> nog in te vullen
D18: Q10. | G18: 20 | N18: 14 verlies opvangbaar | O18: =R18/$Q$13 ->  | P18: 0.5 | Q18: =F73 -> 250 | R18: =I73 -> nog in te vullen
C19: titel tabel 2 | D19: Q9. Voorbije 5 jaar meer dan 5.000 geinvesteerd | E19: minder | G19: 10
C20: kennis andere financiële producten | D20: vrij in te vullen door de klant | O20: =100%-SUM(O15:O18) -> 
C21: beleggingen in andere financiële producten | D21: vrij in te vullen door de klant | N21: Beleggingshorizon | O21: =IF(H50="X",3,IF(H51="x",8,IF(H52="x",16,40))) -> 40
A22: B. Financiële situatie | B22: Q11. roerend vermogen | C22: a | D22: < €12,500 | E22: het meest doorslag-gevend | F22: =VLOOKUP(E22,$K$2:$L$6,2) -> 150 | G22: 0 | I22: =IF(H22="x",G22,IF(H23="x",G23,IF(H24="x",G24,IF(H25="x",G25,IF(H26="x",G26,"nog in te vullen"))))) -> nog in te vullen | O22: voorkeur klant | Q22: veiligheid | R22: rendement
C23: b | D23: €12,500-€ 50,000 | G23: 35 | N23: veiligheid vs rendement | O23: =IF(H60="x",G60,IF(H61="x",G61,IF(H62="x",G62,G63))) -> 250 | Q23: =G60 -> 0 | R23: =G63 -> 250 | S23: =R23-O23 -> 0
C24: c | D24: €50,000- €125,000 | G24: 70 | J24: =IF(H22="x",12500,IF(H23="x",50000,IF(H24="x",125000,IF(H25="x",250000,1000000000000)))) -> 1000000000000
C25: d | D25: €125,000-250,000 | G25: 105
C26: e | D26: >€ 250,000 | G26: 140
B27: Q12. onroerend vermogen | C27: a | D27: nee | E27: minder | F27: =VLOOKUP(E27,$K$2:$L$6,2) -> 60 | G27: 0 | I27: =IF(H27="x",G27,IF(H28="x",G28,IF(H29="x",G29,"nog in te vullen"))) -> nog in te vullen
C28: b | D28: ja, vastgoed voor eigen gebruik | G28: 30
C29: c | D29: ja, meerdere onroerende goederen | G29: 60
B30: Q13. inkomen_ netto-inkomen | C30: a | D30: <€1,500 | E30: minder | F30: =VLOOKUP(E30,$K$2:$L$6,2) -> 60 | G30: 0 | I30: =IF(H30="x",G30,IF(H31="x",G31,IF(H32="x",G32,IF(H33="x",G33,"nog in te vullen")))) -> nog in te vullen
C31: b | D31: €1,500- €3,000 | G31: 20 | J31: =IF(H30="x",1500,IF(H31="x",3000,IF(H32="x",5000,1000000000000))) -> 1000000000000
C32: c | D32: €3,000- €5,000 | G32: 40
C33: d | D33: >€5,000 | G33: 60
B34: 6b inkomen_ maandelijkse lasten | C34: a | D34: <€750 | J34: =IF(H34="x","ok",IF(H35="x","ok",IF(H36="x","ok",IF(H37="x","ok","nog in te vullen")))) -> nog in te vullen
C35: b | D35: €750-€1500 | J35: 0 | K35: =IF(J31-J36<J39,"inkomen onvoldoende",0) -> 0
C36: c | D36: €1500-€2500 | J36: =IF(H34="x",750,IF(H35="x",1500,IF(H36="x",2500,4000))) -> 4000
C37: d | D37: >€2500
B38: Q14. spaar-mogelijkheid | C38: a | D38: <€250 | E38: het meest doorslag-gevend | F38: =VLOOKUP(E38,$K$2:$L$6,2) -> 150 | G38: 0 | I38: =IF(H38="x",G38,IF(H39="x",G39,IF(H40="x",G40,IF(H41="x",G41,"nog in te vullen")))) -> nog in te vullen
C39: b | D39: €250- €500 | G39: 45 | J39: =IF(H38="x",250,IF(H39="x",500,IF(H40="x",1000,4000))) -> 4000
C40: c | D40: €500- €1000 | G40: 105
C41: d | D41: >€1000 | G41: 150
B42: Q15. evolutie financiële situatie | C42: a | D42: ja, negatief | E42: midden | F42: =VLOOKUP(E42,$K$2:$L$6,2) -> 100 | G42: 0 | I42: =IF(H42="x",G42,IF(H43="x",G43,IF(H44="x",G44,"nog in te vullen"))) -> nog in te vullen
C43: b | D43: neen | G43: 45
C44: c | D44: ja, positief | G44: 90
A45: C. Doelstellingen | B45: Q16. belangrijkste doelstelling | C45: a | D45: specifieke uitgave id toekomst | E45: meer doorslag-gevend | F45: =VLOOKUP(E45,$K$2:$L$6,2) -> 125 | G45: 0 | I45: =IF(H45="x",G45,IF(H46="x",G46,IF(H47="x",G47,IF(H49="x",G49,"nog in te vullen")))) -> nog in te vullen
C46: b | D46: algemene vermogensgroei | G46: 87
C47: c | D47: inspelen op beursontwikkeling | G47: 125
C48: d | D48: extra maandelijks inkomen | G48: 19
C49: e | D49: aanvulling toekomstig inkomen | G49: 37
B50: Q17. termijn | C50: a | D50: < 3jaar | E50: meer doorslag-gevend | F50: =VLOOKUP(E50,$K$2:$L$6,2) -> 125 | G50: 0 | I50: =IF(H50="x",G50,IF(H51="x",G51,IF(H52="x",G52,IF(H53="x",G53,"nog in te vullen")))) -> nog in te vullen
C51: b | D51: 3 jaar - 8 jaar | G51: 37
C52: c | D52: 8 jaar-16 jaar | G52: 87
C53: d | D53: > 16 jaar | G53: 125
E54: TOTAAL | F54: =SUM(F1:F53) -> 1000 | I54: =IF(COUNTIF(I1:I53,"nog in te vullen")>=1,Nog_een_vraag_onbeantwoord,(IF(J35="inkomen onvoldoende",Inkomen_Onvoldoende,SUM(I1:I53)))) -> Nog min. 1 vraag te beantwoorden of --> u hebt op minstens 1 vraag aangegeven dat u daarop niet wenst te antwoorden.
I55: =IF(COUNTIF(I1:I10,"nog in te vullen")>=1,Nog_een_vraag_onbeantwoord,SUM(I1:I10)) -> Nog min. 1 vraag te beantwoorden of --> u hebt op minstens 1 vraag aangegeven dat u daarop niet wenst te antwoorden.
B56: Beleggersprofieltype | D56: =IF(I54=Nog_een_vraag_onbeantwoord,txt_Geen_profielbepaling_mogelijk,IF(I54=Inkomen_Onvoldoende,txt_Geen_profielbepaling_mogelijk,IF(OR(H10="",H11 = ""),VLOOKUP(I10,Tbl_ProfielTypes,3),VLOOKUP(I54,Tbl_ProfielTypes,3)))) -> Geen profielbepaling mogelijk | G56: =VLOOKUP(beleggerstype_SIM,Tbl_ProfielTypes_Scored,2,FALSE) ->  | J56: =IF(I54=Nog_een_vraag_onbeantwoord,txt_Geen_profielbepaling_mogelijk,IF(I54=Inkomen_Onvoldoende,txt_Geen_profielbepaling_mogelijk,VLOOKUP(I54,Tbl_ProfielTypes,3))) -> Geen profielbepaling mogelijk
B59: vragen | C59: antwoordmogelijkheden | E59: algemene weging | F59: scoring/vraag | G59: scoring/ antwoord | I59: score antwoord
A60: Risicoappetijt | B60: Q18. | C60: a | D60: kapitaalbehoud is belangrijkste | E60: doorslag-gevend | F60: =VLOOKUP(E60,$K$65:$L$65,2) -> 250 | G60: 0 | I60: =IF(H60="x",G60,IF(H61="x",G61,IF(H62="x",G62,IF(H63="x",G63,"nog in te vullen")))) -> nog in te vullen
B61: beleggings-voorkeur | C61: b | D61: grootste deel veilig beleggen | G61: 85
C62: c | D62: enig risico -hoger rendement | G62: 165
C63: d | D63: zo hoog mogelijk rendement | G63: 250
B64: Q19. | C64: a | D64: opportuniteit om bij te kopen | E64: doorslag-gevend | F64: =VLOOKUP(E64,$K$65:$L$65,2) -> 250 | G64: 250 | I64: =IF(H64="x",G64,IF(H65="x",G65,IF(H66="x",G66,IF(H67="x",G67,"nog in te vullen")))) -> nog in te vullen | K64: soort vraag | L64: gewicht
B65: reactie bij sterke daling beleggingen | C65: b | D65: evolutie opvolgen | G65: 165 | K65: doorslaggevend | L65: ='scoring vragenlijst'!N73 -> 250
C66: c | D66: overweeg verkoop | G66: 85
C67: d | D67: niet slapen | G67: 0
B68: Q20. | C68: a | D68: geen enkele | E68: doorslag-gevend | F68: =VLOOKUP(E68,$K$65:$L$65,2) -> 250 | G68: 0 | I68: =IF(H68="x",G68,IF(H69="x",G69,IF(H70="x",G70,IF(H71="x",G71,IF(H72="x",G72,"nog in te vullen"))))) -> nog in te vullen
B69: welke schommeling tolereren? | C69: b | D69: beperkt | G69: 42
C70: c | D70: gemiddeld | G70: 85
C71: d | D71: sterk | G71: 165
C72: e | D72: zeer sterk | G72: 250
B73: Q21. | C73: a | D73: erg moeilijk | E73: doorslag-gevend | F73: =VLOOKUP(E73,$K$65:$L$65,2) -> 250 | G73: 0 | I73: =IF(H73="x",G73,IF(H74="x",G74,IF(H75="x",G75,IF(H76="x",G76,"nog in te vullen")))) -> nog in te vullen
B74: verlies opvangbaar | C74: b | D74: uitgaven aanpassen | G74: 85
C75: c | D75: compenseren | G75: 165
C76: d | D76: geen probleem | G76: 250
E77: TOTAAL | F77: =SUM(F60:F76) -> 1000 | I77: =IF(COUNTIF(I60:I76,"nog in te vullen")>=1,Nog_een_vraag_onbeantwoord,SUM(I60:I76)) -> Nog min. 1 vraag te beantwoorden of --> u hebt op minstens 1 vraag aangegeven dat u daarop niet wenst te antwoorden.
B79: Beleggersprofieltype | D79: =IF(I77=Nog_een_vraag_onbeantwoord,txt_Geen_profielbepaling_mogelijk,IF(OR(H60="x",H67="x",H69="x",H73="x"),VLOOKUP(120,Tbl_ProfielTypes,3),VLOOKUP(I77,Tbl_ProfielTypes,3))) -> Geen profielbepaling mogelijk | E79: (*) | G79: =VLOOKUP(beleggerstype_appetijt_SIM,Tbl_ProfielTypes_Scored,2,FALSE) -> 
A81: FINALE BELEGGERSTYPE | D81: =Select_Profile() -> Geen profielbepaling mogelijk | G81: =IF(G56<G79,G56,G79) -> 
C85: oude foermule | D85: =IF(OR(D56=txt_Geen_profielbepaling_mogelijk,D79=txt_Geen_profielbepaling_mogelijk),txt_Geen_profielbepaling_mogelijk,IF(G56<G79,D56,D79)) -> Geen profielbepaling mogelijk
C86: (*) | D86: in de vlookup HARDCODED '120' ingevuld, om profiel "defensif" te forceren in deze conditie

Sheet Passendheid (hidden)
A1: 2018-11-07 | B1: vragen | C1: antwoordmogelijkheden | E1: algemene weging | F1: Max | G1: scoring/ antwoord | H1: Antwoorden | I1: Antwoorden: SCORE | L1: =ROW() -> 1 | M1: 2016-09-12 | R1: =AA3 -> Evoluplan | S1: =AB3 -> Ideal Capital | T1: Perform | U1: FlexiLife | V1: FlexiCap | W1: Perform & Rente | X1: Go Junior | Y1: Ideal Invest
B2: 1.1 kennis uit opleiding | C2: a | D2: ='Manuele Simulatie'!D1 -> geen specifieke kennis | E2: minst doorslag-gevend | F2: 20 | G2: 0 | I2: =IF(H2="x",G2,"") ->  | L2: =ROW() -> 2 | M2: Liste des produits possibles selon les souhaits du client | R2: =R34 -> Evoluplan | S2: =S34 -> Ideal Capital | T2: Perform | U2: FlexiLife | V2: FlexiCap | W2: Perform & Rente | X2: Go Junior | Y2: =Y34 -> Ideal Invest
A3: A. Kennis en ervaring | C3: b | D3: ='Manuele Simulatie'!D2 -> Beperkte kennis | G3: 25 | I3: =IF(H3="x",G3,"") ->  | L3: =ROW() -> 3 | Y3: =IF(Y2="X","","Attention Ideal Invest = Branche 23 - Profile de risque au moins dynamique") -> Attention Ideal Invest = Branche 23 - Profile de risque au moins dynamique | AA3: Evoluplan | AB3: Ideal Capital | AC3: Perform | AD3: FlexiLife | AE3: FlexiCap | AF3: Perform & Rente | AG3: Go Junior | AH3: Ideal Invest
C4: c | D4: ='Manuele Simulatie'!D3 -> Kennis over financiën | G4: 50 | I4: =IF(H4="x",G4,"") ->  | L4: =ROW() -> 4 | M4: 7 | N4: Quelles garanties principales? | O4: Autre | R4: =IF(AND($Q4="X",AA4="X"),"X", " ") ->  | S4: =IF(AND($Q4="X",AB4="X"),"X", " ") ->  | T4: =IF(AND($Q4="X",AC4="X"),"X", " ") ->  | U4: =IF(AND($Q4="X",AD4="X"),"X", " ") ->  | V4: =IF(AND($Q4="X",AE4="X"),"X", " ") ->  | W4: =IF(AND($Q4="X",AF4="X"),"X", " ") ->  | X4: =IF(AND($Q4="X",AG4="X"),"X", " ") ->  | Y4: =IF(AND($Q4="X",AH4="X"),"X", " ") ->  | AA4: X | AB4: X | AC4: X | AD4: X | AE4: X | AF4: X | AG4: X | AH4: X
B5: 1.2 beroeps-matige kennis | C5: a | D5: nee | E5: minst doorslag-gevend | F5: 20 | G5: 0 | L5: =ROW() -> 5 | O5: Epargne et Investissement | R5: =IF(AND($Q5="X",AA5="X"),"X", " ") ->  | AA5: X | AB5: X | AC5: x | AF5: x | AG5: X
C6: b | D6: ja | G6: 20 | L6: =ROW() -> 6 | P6: ss envie de retrait | AA6: X | AB6: X | AC6: X | AF6: X | AG6: X
B7: 2 interesse | C7: a | D7: geen interesse | E7: midden | F7: 40 | G7: 0 | I7: =IF(AND(H7="x",H8<>"x",H9<>"x",H10<>"x"),G7,"") ->  | L7: =ROW() -> 7 | P7: en combinaison avec revenus récurrents | AA7: X | AB7: X | AC7: X | AF7: x | AG7: X
C8: b | D8: lees financiële bladzijden | G8: 10 | I8: =IF(AND(H8="x",H9<>"x",H10<>"x"),G8,"") ->  | L8: =ROW() -> 8 | M8: 8 | N8: Quelles garanties complémentaires? | O8: Décès | AA8: X | AB8: X | AC8: x | AE8: X | AF8: X | AG8: X | AH8: X
C9: c | D9: zoek actief financiële informatie | G9: 30 | I9: =IF(AND(H9="x",H10<>"x"),G9,"") ->  | L9: =ROW() -> 9 | O9: Invalidité | AA9: X | AB9: X | AC9: X | AD9: X | AE9: X | AF9: X | AG9: X | AH9: X
C10: d | D10: volg financiële markt beroepsmatig | G10: 50 | L10: =ROW() -> 10 | O10: Décès accidentel | AA10: X | AB10: X | AC10: X | AD10: X | AE10: X | AF10: X | AG10: X | AH10: X
B11: 3 tabel producten | C11: 3.1 producten die u kent | D11: a T21 (opt21a) | E11: minder | F11: 130 | G11: 20 | L11: =ROW() -> 11 | M11: 9 | N11: Fiscalité | O11: Avec avantages fiscaux | AA11: X | AB11: X | AC11: X | AD11: X | AE11: X | AF11: X | AG11: X | AH11: X
D12: b T23 (optT23zondera) | G12: 20 | L12: =ROW() -> 12 | O12: Sans fiscalité | AA12: X | AB12: X | AC12: x | AF12: x | AG12: X
D13: c T23 (optT23meta) | G13: 20 | L13: =ROW() -> 13 | M13: 10 | N13: Versements | O13: Prime unique | AA13: X | AB13: X | AC13: x | AF13: x | AG13: X
D14: d (optT23metzondera) | G14: 20 | L14: =ROW() -> 14 | O14: Prime périodique | AA14: X | AB14: X | AC14: X | AD14: X | AE14: X | AF14: X | AG14: X
D15: e (optT26a) | G15: 20 | L15: =ROW() -> 15 | O15: Versements libres | AA15: X | AB15: X | AC15: X | AF15: X | AG15: X
D16: f (opt_P2_Q8a) | G16: 20 | I16: =IF(H16="x",G16,"") ->  | L16: =ROW() -> 16 | O16: Versements libres | R16: =IF(AND($Q16="X",AA16="X"),"X", " ") ->  | AA16: X | AB16: X | AC16: X | AF16: X | AG16: X
C17: 3.2 producten waarin u belegt of heeft belegd (zowel occasioneel als regelmatig) | D17: T21 | G17: 6 | L17: =ROW() -> 17 | O17: Personne MORALE | R17: =IF(AND($Q17="X",AA17="X"),"X", " ") ->  | AA17: X | AB17: X | AC17: X | AD17: X | AF17: X | AG17: X
D18: T23 zonder kapitaalsbescherming | G18: 8 | L18: =ROW() -> 18 | M18: 11 | N18: Quel montant de prime unique ou sur base annuelle | R18: =IF($Q18="","",IF($Q14="X",IF($Q18<30,"X", " "),IF($Q18<AA18,"X",""))) ->  | S18: =IF($Q18="","",IF($Q14="X",IF($Q18<AB18,"X", " "),IF($Q18<AB18,"X",""))) ->  | Y18: =IF($Q18="","",IF($Q14="X",IF($Q18<AH18/2,"X", " "),IF($Q18<AH18,"X",""))) ->  | AA18: 200 | AB18: 50 | AC18: 5000 | AD18: 2500 | AE18: 2500 | AF18: 5000 | AG18: =AB18 -> 50 | AH18: 2500 | AJ18: opgelet : checklist RANGE "gewenste premie" ook aanpassen
D19: ='Manuele Simulatie'!D18 -> Q10. | G19: 20 | L19: =ROW() -> 19 | M19: 12 | N19: Quelle durée | O19: Durée inférieure ou égal à 3 ans | R19: =IF(AND($Q19="X",AA19="X"),"X", " ") ->  | S19: =IF(AND($Q19="X",AB19="X"),"X", " ") ->  | T19: =IF(AND($Q19="X",AC19="X"),"X", " ") ->  | U19: =IF(AND($Q19="X",AD19="X"),"X", " ") ->  | V19: =IF(AND($Q19="X",AE19="X"),"X", " ") ->  | W19: =IF(AND($Q19="X",AF19="X"),"X", " ") ->  | X19: =IF(AND($Q19="X",AG19="X"),"X", " ") ->  | Y19: =IF(AND($Q19="X",AH19="X"),"X", " ") ->  | AA19: X | AB19: X | AC19: x | AD19: X | AE19: X | AF19: X | AG19: X | AH19: X
C20: ='Manuele Simulatie'!C19 -> titel tabel 2 | D20: ='Manuele Simulatie'!D19 -> Q9. Voorbije 5 jaar meer dan 5.000 geinvesteerd | G20: 10 | L20: =ROW() -> 20
D21: T26 | G21: 6 | L21: =ROW() -> 21 | O21: Durée inférieure à 8 ans | AA21: X | AB21: X | AC21: x | AF21: x | AG21: X
C22: kennis andere financiële producten | D22: vrij in te vullen door de klant | L22: =ROW() -> 22 | O22: Durée supérieure à 8 ans | AA22: X | AB22: X | AC22: x | AF22: x | AG22: X
C23: beleggingen in andere financiële producten | D23: vrij in te vullen door de klant | L23: =ROW() -> 23 | O23: Jusqu'à la retraite | AA23: X | AB23: X | AC23: x | AD23: x | AE23: x | AF23: x | AG23: X | AJ23: wegens geen gegarandeerde rente over ganse looptijd (Massimo)
F24: =SUM(F2:F21) -> 210 | I24: =SUM(I2:I21) -> 0 | L24: =ROW() -> 24 | M24: 13 | N24: Devez-vous pouvoir récupérer une partie de l'investissement? | O24: Non | AA24: X | AB24: X | AC24: x | AF24: X | AG24: X
E25: Score minimal pour branche 21 appropriée | F25: 40 | L25: =ROW() -> 25 | O25: Régulièrement | AA25: X | AB25: X | AC25: X | AD25: X | AE25: X | AF25: x | AG25: X | AH25: X
E26: Condition : Produits T21 déclarés comme connus | F26: =IF(H13="","NOK",IF(Score_Passendheid<=Min_Score_geschiktheid_T21,"NOK","OK")) -> NOK | I26: =IF(AND(I24<F25,H11=""),"Br 21 pas appropriée","Tous produits Br 21 appropriés") -> Br 21 pas appropriée | L26: =ROW() -> 26 | O26: Flexible | AA26: X | AB26: X | AC26: X | AF26: X | AG26: X
C27: Si erreur à la question 3,1c (Br21) inaproprie même si score suffisant | L27: =ROW() -> 27 | M27: 14 | N27: Attentes spécifiques | P27: Destiné à un jeune adulte au terme fixé | AA27: X | AB27: X | AC27: X | AD27: X | AE27: X | AF27: X | AG27: X | AH27: X
C28: Si erreur à une des question 3,1.b ou 3,1,e Ideal invest (Br23) inaproprie même si score suffisant | E28: Score minimal pour branche 23 appropriée | F28: 120 | L28: =ROW() -> 28 | P28: Rendement garanti préféré à la participation bénéficiaire | AA28: X | AB28: X | AC28: x | AD28: X | AE28: X | AF28: x | AG28: X | AH28: X
F29: ou | L29: =ROW() -> 29 | P29: Possibilité de demander l'ajout d'une ACRI dans le futur | AA29: X | AB29: X | AC29: X | AD29: X | AE29: X | AF29: X | AG29: X | AH29: X
E30: Réponse positive à une des questions 1.2.b, 2.c, 2.d, 3.1.b ou 3.1.d | F30: =IF(AND(H12="x",H15="x"),"OK","NOK") -> NOK | I30: =IF(AND(I24>F28-0.01,F30="OK"),"FUNDS OK","FUNDS NOK") -> FUNDS NOK | L30: =ROW() -> 30 | P30: Possibilité de demander l'ajout d'un capital décès minimum dans le futur | AA30: X | AB30: X | AC30: x | AE30: X | AF30: X | AG30: X | AH30: X
D31: ancienne estimation | E31: Réponse positive à une des questions 1.2.b, 2.c, 2.d, 3.1.b ou 3.1.d | F31: =IF(OR(H6="x",H9="x",H10="x",H12="x",H13="x"),"OK","NOK") -> NOK | L31: =ROW() -> 31 | P31: Rendement lié à la bourse | AA31: X | AB31: X | AC31: X | AD31: X | AE31: X | AF31: X | AG31: X
L32: =ROW() -> 32 | P32: Possibilité de récupérer le précompte mobilier via l'impôt des sociétés | AA32: X | AB32: X | AC32: X | AD32: X | AF32: X | AG32: X | AH32: X
L33: =ROW() -> 33 | P33: Leeftijd > 65j | R33: =IF(AND($Q33="X",AA33="X"),"X", " ") ->  | AA33: X | AB33: X | AC33: X | AD33: X | AE33: X | AF33: X | AG33: X
L34: =ROW() -> 34 | M34: Liste des produits possibles selon les souhaits du client | R34: =IF(COUNTIF(R4:R32,"X")>0,"X", AA$3) -> Evoluplan | S34: =IF(COUNTIF(S4:S32,"X")>0,"X", AB$3) -> Ideal Capital | T34: Perform | U34: FlexiLife | V34: FlexiCap | W34: Perform & Rente | X34: Go Junior | Y34: Ideal Invest | AA34: =AA3 -> Evoluplan | AB34: Ideal Capital | AC34: Perform | AD34: FlexiLife | AE34: FlexiCap | AF34: Perform & Rente | AG34: Go Junior | AH34: Ideal Invest
L35: =ROW() -> 35 | Y35: =IF(Y34="X","","Attention Ideal Invest = Branche 23 - Profile de risque au moins dynamique") -> Attention Ideal Invest = Branche 23 - Profile de risque au moins dynamique
L36: =ROW() -> 36 | AC36: F. Gosselin 12/01/2016 | AF36: F. Gosselin 12/01/2016
L37: =ROW() -> 37 | AC37: M. Morchio 9/2016
